{"text_format":"1","workbook":"xlsx","n_sheets":6,"sheets":["Notes","Summary","ICB","Trusts","Sites","BS"],"not_rendered":{"charts":0,"images":0,"macros":1,"external_links":1,"defined_names":5,"comments":0,"pivot_tables":0},"unopened":[],"bounds":{"document_bytes":16777216,"sheet_cells":100000,"rows_first":2000,"rows_last":500,"rows_between":2000,"halvings":0,"cell_chars":16384,"cell_head_chars":4096},"cells_cut":0,"cells_raw":0,"read":"whole","date_system":"1900"}

{"sheet":"Notes","index":0,"n_rows":2,"n_cols":8,"rows_kept":2,"cut":false,"hidden":false,"merged":[[1,1,1,4]]}
[]
[null,"A&E Friends and Family Test (FFT) data - July 2022",null,null,null,null,null,"  Show data for:"]

{"sheet":"Summary","index":1,"n_rows":7,"n_cols":10,"rows_kept":7,"cut":false,"hidden":false,"merged":[[2,1,3,1],[2,4,2,5],[2,6,2,7],[2,8,2,9]]}
[]
[]
[null,"FFT","Number of organisations submitting","Total responses to date","Responses",null,"Percentage Positive",null,"Percentage Negative"]
[null,null,"2022-07-01","2022-07-01","2022-07-01","2022-06-26","2022-07-01","2022-06-26","2022-07-01","2022-06-26"]
[null,"A&E Total",121,12975414,114530,114471,0.74515847376233302,0.74342846659852713,0.17353531825722518,0.17284727136130548]
[null,"Acute Type 1&2",99,12288318,107884,107675,0.74372474138889921,0.74000464360343632,0.17470616588187313,0.17537961458091478]
[null,"WiCs & MIUs",22,687096,6646,6796,0.76843213963286183,0.7976751030017657,0.15452904002407464,0.13272513243084166]

{"sheet":"ICB","index":2,"n_rows":48,"n_cols":12,"rows_kept":48,"cut":false,"hidden":false,"merged":[[2,6,2,11],[2,0,3,0],[2,1,3,1],[2,2,3,2],[2,3,3,3],[2,4,3,4],[2,5,3,5]]}
[]
[]
["ICB Code","ICB Name","Total Responses","Total Eligible","Percentage Positive","Percentage Negative","Breakdown of Responses"]
[null,null,null,null,null,null,"Very Good","Good","Neither Good nor Poor","Poor","Very Poor","Don't Know"]
[null,"England",114530,1149903,0.74515847376233302,0.17353531825722518,63866,21477,7712,7090,12785,1600]
[null,"Selection (excluding suppressed data)",{"$f":"SUBTOTAL(9,C7:C48)","v":114530},{"$f":"SUBTOTAL(9,D7:D48)","v":1149903},{"$f":"IFERROR((G6+H6)/C6, \"-\")","v":0.74515847376233302},{"$f":"IFERROR((J6+K6)/C6, \"-\")","v":0.17353531825722518},{"$f":"SUBTOTAL(9,G7:G48)","v":63866},21477,7712,7090,12785,1600]
["QE1",{"$f":"VLOOKUP($A7,'[1]Correct ICB'!$A$1:$B$42,2,0)","v":"LANCASHIRE AND SOUTH CUMBRIA ICB"},3506,27710,0.7430119794637764,0.17455790074158586,1973,632,262,204,408,27]
["QF7",{"$f":"VLOOKUP($A8,'[1]Correct ICB'!$A$1:$B$42,2,0)","v":"SOUTH YORKSHIRE ICB"},2050,35039,0.78487804878048784,0.13365853658536586,1274,335,142,105,169,25]
["QGH",{"$f":"VLOOKUP($A9,'[1]Correct ICB'!$A$1:$B$42,2,0)","v":"HEREFORDSHIRE AND WORCESTERSHIRE ICB"},2047,17166,0.86956521739130432,9.3795798729848556E-2,1622,158,74,75,117,1]
["QH8",{"$f":"VLOOKUP($A10,'[1]Correct ICB'!$A$1:$B$42,2,0)","v":"MID AND SOUTH ESSEX ICB"},3061,14506,0.72688663835347922,0.18000653381247958,1567,658,228,191,360,57]
["QHG",{"$f":"VLOOKUP($A11,'[1]Correct ICB'!$A$1:$B$42,2,0)","v":"BEDFORDSHIRE, LUTON AND MILTON KEYNES ICB"},678,21928,0.73008849557522126,0.15781710914454278,297,198,71,45,62,5]
["QHL",{"$f":"VLOOKUP($A12,'[1]Correct ICB'!$A$1:$B$42,2,0)","v":"BIRMINGHAM AND SOLIHULL ICB"},4026,32391,0.63487332339791358,0.26751117734724295,1844,712,286,332,745,107]
["QHM",{"$f":"VLOOKUP($A13,'[1]Correct ICB'!$A$1:$B$42,2,0)","v":"NORTH EAST AND NORTH CUMBRIA ICB"},2793,83658,0.81310418904403869,0.12495524525599713,1780,491,162,136,213,11]
["QJ2",{"$f":"VLOOKUP($A14,'[1]Correct ICB'!$A$1:$B$42,2,0)","v":"DERBY AND DERBYSHIRE ICB"},1953,16194,0.7547363031233999,0.16538658474142345,1055,419,149,137,186,7]
["QJG",{"$f":"VLOOKUP($A15,'[1]Correct ICB'!$A$1:$B$42,2,0)","v":"SUFFOLK AND NORTH EAST ESSEX ICB"},3353,21469,0.81538920369818069,0.11691022964509394,2095,639,196,156,236,31]
["QJK",{"$f":"VLOOKUP($A16,'[1]Correct ICB'!$A$1:$B$42,2,0)","v":"DEVON ICB"},57,32307,0.91228070175438591,7.0175438596491224E-2,48,4,1,1,3,0]
["QJM",{"$f":"VLOOKUP($A17,'[1]Correct ICB'!$A$1:$B$42,2,0)","v":"LINCOLNSHIRE ICB"},1463,2728,0.75187969924812026,0.1572112098427888,777,323,125,91,139,8]
["QK1",{"$f":"VLOOKUP($A18,'[1]Correct ICB'!$A$1:$B$42,2,0)","v":"LEICESTER, LEICESTERSHIRE AND RUTLAND ICB"},2415,15359,0.80496894409937891,0.13871635610766045,1286,658,120,110,225,16]
["QKK",{"$f":"VLOOKUP($A19,'[1]Correct ICB'!$A$1:$B$42,2,0)","v":"SOUTH EAST LONDON ICB"},2546,40390,0.72977219167321283,0.1779261586802828,1236,622,216,156,297,19]
["QKS",{"$f":"VLOOKUP($A20,'[1]Correct ICB'!$A$1:$B$42,2,0)","v":"KENT AND MEDWAY ICB"},3429,44628,0.7567804024496938,0.17614464858559348,1939,656,216,233,371,14]
["QM7",{"$f":"VLOOKUP($A21,'[1]Correct ICB'!$A$1:$B$42,2,0)","v":"HERTFORDSHIRE AND WEST ESSEX ICB"},1280,36105,0.65625,0.25078125000000001,542,298,114,115,206,5]
["QMF",{"$f":"VLOOKUP($A22,'[1]Correct ICB'!$A$1:$B$42,2,0)","v":"NORTH EAST LONDON ICB"},3689,57508,0.58389807535917593,0.28354567633505012,1477,677,290,335,711,199]
["QMJ",{"$f":"VLOOKUP($A23,'[1]Correct ICB'!$A$1:$B$42,2,0)","v":"NORTH CENTRAL LONDON ICB"},9449,52634,0.77616679013652234,0.15705365647158429,5897,1437,469,434,1050,162]
["QMM",{"$f":"VLOOKUP($A24,'[1]Correct ICB'!$A$1:$B$42,2,0)","v":"NORFOLK AND WAVENEY ICB"},1475,18510,0.76,0.168135593220339,808,313,102,105,143,4]
["QNC",{"$f":"VLOOKUP($A25,'[1]Correct ICB'!$A$1:$B$42,2,0)","v":"STAFFORDSHIRE AND STOKE-ON-TRENT ICB"},1049,16329,0.66158245948522398,0.21734985700667303,464,230,125,94,134,2]
["QNQ",{"$f":"VLOOKUP($A26,'[1]Correct ICB'!$A$1:$B$42,2,0)","v":"FRIMLEY ICB"},9,0,0.44444444444444442,0.44444444444444442,4,0,1,0,4,0]
["QNX",{"$f":"VLOOKUP($A27,'[1]Correct ICB'!$A$1:$B$42,2,0)","v":"SUSSEX ICB"},2827,26355,0.78493102228510792,0.14998231340643792,1683,536,155,163,261,29]
["QOC",{"$f":"VLOOKUP($A28,'[1]Correct ICB'!$A$1:$B$42,2,0)","v":"SHROPSHIRE, TELFORD AND WREKIN ICB"},39,13247,0.61538461538461542,0.28205128205128205,17,7,3,4,7,1]
["QOP",{"$f":"VLOOKUP($A29,'[1]Correct ICB'!$A$1:$B$42,2,0)","v":"GREATER MANCHESTER ICB"},6912,69360,0.72135416666666663,0.19806134259259259,3759,1227,456,458,911,101]
["QOQ",{"$f":"VLOOKUP($A30,'[1]Correct ICB'!$A$1:$B$42,2,0)","v":"HUMBER AND NORTH YORKSHIRE ICB"},2495,25761,0.68697394789579158,0.21042084168336672,1236,478,208,213,312,48]
["QOX",{"$f":"VLOOKUP($A31,'[1]Correct ICB'!$A$1:$B$42,2,0)","v":"BATH AND NORTH EAST SOMERSET, SWINDON AND WILTSHIRE ICB"},1094,8998,0.72303473491773307,0.19469835466179158,562,229,77,78,135,13]
["QPM",{"$f":"VLOOKUP($A32,'[1]Correct ICB'!$A$1:$B$42,2,0)","v":"NORTHAMPTONSHIRE ICB"},1928,17706,0.74636929460580914,0.1654564315352697,1091,348,143,124,195,27]
["QR1",{"$f":"VLOOKUP($A33,'[1]Correct ICB'!$A$1:$B$42,2,0)","v":"GLOUCESTERSHIRE ICB"},1118,6086,0.68067978533094808,0.2262969588550984,503,258,100,110,143,4]
["QRL",{"$f":"VLOOKUP($A34,'[1]Correct ICB'!$A$1:$B$42,2,0)","v":"HAMPSHIRE AND ISLE OF WIGHT ICB"},3605,33718,0.81553398058252424,0.11761442441054092,2331,609,202,193,231,39]
["QRV",{"$f":"VLOOKUP($A35,'[1]Correct ICB'!$A$1:$B$42,2,0)","v":"NORTH WEST LONDON ICB"},4896,44099,0.78125,0.15441176470588236,2956,869,288,260,496,27]
["QSL",{"$f":"VLOOKUP($A36,'[1]Correct ICB'!$A$1:$B$42,2,0)","v":"SOMERSET ICB"},76,19597,0.89473684210526316,9.2105263157894732E-2,63,5,1,3,4,0]
["QT1",{"$f":"VLOOKUP($A37,'[1]Correct ICB'!$A$1:$B$42,2,0)","v":"NOTTINGHAM AND NOTTINGHAMSHIRE ICB"},1601,18719,0.88881948782011244,7.12054965646471E-2,1200,223,55,50,64,9]
["QT6",{"$f":"VLOOKUP($A38,'[1]Correct ICB'!$A$1:$B$42,2,0)","v":"CORNWALL AND THE ISLES OF SCILLY ICB"},1012,7545,0.79051383399209485,0.12648221343873517,574,226,81,61,67,3]
["QU9",{"$f":"VLOOKUP($A39,'[1]Correct ICB'!$A$1:$B$42,2,0)","v":"BUCKINGHAMSHIRE, OXFORDSHIRE AND BERKSHIRE WEST ICB"},3523,21635,0.73715583309679256,0.17144479137099064,1920,677,282,233,371,40]
["QUA",{"$f":"VLOOKUP($A40,'[1]Correct ICB'!$A$1:$B$42,2,0)","v":"BLACK COUNTRY ICB"},3788,20030,0.70908130939809921,0.18057022175290391,1977,709,273,223,461,145]
["QUE",{"$f":"VLOOKUP($A41,'[1]Correct ICB'!$A$1:$B$42,2,0)","v":"CAMBRIDGESHIRE AND PETERBOROUGH ICB"},1986,15749,0.61933534743202412,0.26082578046324267,804,426,180,173,345,58]
["QUY",{"$f":"VLOOKUP($A42,'[1]Correct ICB'!$A$1:$B$42,2,0)","v":"BRISTOL, NORTH SOMERSET AND SOUTH GLOUCESTERSHIRE ICB"},1262,17917,0.80824088748019018,0.12361331220285261,769,251,76,66,90,10]
["QVV",{"$f":"VLOOKUP($A43,'[1]Correct ICB'!$A$1:$B$42,2,0)","v":"DORSET ICB"},2538,13229,0.78684003152088255,0.13081166272655634,1502,495,158,111,221,51]
["QWE",{"$f":"VLOOKUP($A44,'[1]Correct ICB'!$A$1:$B$42,2,0)","v":"SOUTH WEST LONDON ICB"},4603,40852,0.74494894633934394,0.16641320877688465,2434,995,371,315,451,37]
["QWO",{"$f":"VLOOKUP($A45,'[1]Correct ICB'!$A$1:$B$42,2,0)","v":"WEST YORKSHIRE ICB"},6682,48549,0.73166716551930555,0.18781801855731817,3675,1214,476,380,875,62]
["QWU",{"$f":"VLOOKUP($A46,'[1]Correct ICB'!$A$1:$B$42,2,0)","v":"COVENTRY AND WARWICKSHIRE ICB"},3301,27009,0.75098455013632237,0.17782490154498637,1829,650,183,201,386,52]
["QXU",{"$f":"VLOOKUP($A47,'[1]Correct ICB'!$A$1:$B$42,2,0)","v":"SURREY HEARTLANDS ICB"},624,16261,0.77403846153846156,0.13782051282051283,357,126,49,39,47,6]
["QYG",{"$f":"VLOOKUP($A48,'[1]Correct ICB'!$A$1:$B$42,2,0)","v":"CHESHIRE AND MERSEYSIDE ICB"},8292,50922,0.73540762180414854,0.18210323203087314,4639,1459,546,577,933,138]

{"sheet":"Trusts","index":3,"n_rows":127,"n_cols":20,"rows_kept":127,"cut":false,"hidden":false,"merged":[[2,6,3,6],[2,7,2,12],[2,13,2,19],[2,0,3,0],[2,1,3,1],[2,2,3,2],[2,3,3,3],[2,4,3,4],[2,5,3,5]]}
[]
[]
["ICB Code","Trust Code","Trust Name","Total Responses","Total Eligible","Percentage Positive","Percentage Negative","Breakdown of Responses",null,null,null,null,null,"Mode of Collection"]
[null,null,null,null,null,null,null,"Very Good","Good","Neither Good nor Poor","Poor","Very Poor","Don't Know","Mode SMS","Mode Electronic Discharge","Mode Paper Discharge","Mode Paper Home","Mode Telephone","Mode Online","Mode Other"]
[null,null,"England",114530,1149903,0.74515847376233302,0.17353531825722518,63866,21477,7712,7090,12785,1600,90395,1454,2906,777,7245,10481,1272]
[null,null,"Selection (excluding suppressed data)",{"$f":"SUBTOTAL(9,D7:D999)","v":114530},{"$f":"SUBTOTAL(9,E7:E999)","v":1149903},{"$f":"IFERROR((H6+I6)/D6, \"-\")","v":0.73812101632759974},{"$f":"IFERROR((K6+L6)/D6, \"-\")","v":0.17155330481096656},{"$f":"SUBTOTAL(9,H7:H999)","v":63290},{"$f":"SUBTOTAL(9,I7:I999)","v":21247},7635,7010,12638,1585,89320,1454,2899,777,7245,10438,1272]
["QE1","RXL","BLACKPOOL TEACHING HOSPITALS NHS FOUNDATION TRUST",312,4108,0.66346153846153844,0.25,151,56,27,29,49,0,274,0,0,34,0,4,0]
["QE1","RXR","EAST LANCASHIRE HOSPITALS NHS TRUST",1060,11131,0.65943396226415096,0.24339622641509434,474,225,89,79,179,14,994,0,3,0,0,63,0]
["QE1","RXN","LANCASHIRE TEACHING HOSPITALS NHS FOUNDATION TRUST",516,4003,0.71511627906976749,0.19767441860465115,282,87,45,37,65,0,472,0,5,0,38,1,0]
["QE1","RTX","UNIVERSITY HOSPITALS OF MORECAMBE BAY NHS FOUNDATION TRUST",1618,8468,0.82200247218788625,0.10754017305315204,1066,264,101,59,115,13,1424,0,0,0,194,0,0]
["QF7","RP5","DONCASTER AND BASSETLAW TEACHING HOSPITALS NHS FOUNDATION TRUST",4,14988,"*","*","*","*","*","*","*","*","*","*","*","*","*","*","*"]
["QF7","RCU","SHEFFIELD CHILDREN'S NHS FOUNDATION TRUST",628,5367,0.77070063694267521,0.12101910828025478,378,106,61,32,44,7,0,0,0,0,627,1,0]
["QF7","RHQ","SHEFFIELD TEACHING HOSPITALS NHS FOUNDATION TRUST",1415,6614,0.79151943462897523,0.13851590106007067,892,228,81,73,123,18,1312,0,0,0,103,0,0]
["QF7","RFR","THE ROTHERHAM NHS FOUNDATION TRUST",3,8070,"*","*","*","*","*","*","*","*","*","*","*","*","*","*","*"]
["QGH","RWP","WORCESTERSHIRE ACUTE HOSPITALS NHS TRUST",2047,11125,0.86956521739130432,9.3795798729848556E-2,1622,158,74,75,117,1,2047,0,0,0,0,0,0]
["QGH","RLQ","WYE VALLEY NHS TRUST",0,6041,"NA","NA",0,0,0,0,0,0,0,0,0,0,0,0,0]
["QH8","RAJ","MID AND SOUTH ESSEX NHS FOUNDATION TRUST",3061,14506,0.72688663835347922,0.18000653381247958,1567,658,228,191,360,57,2744,0,0,0,308,9,0]
["QHG","RC9","BEDFORDSHIRE HOSPITALS NHS FOUNDATION TRUST",98,13533,0.69387755102040816,0.26530612244897961,56,12,3,6,20,1,0,55,0,0,0,43,0]
["QHG","RD8","MILTON KEYNES UNIVERSITY HOSPITAL NHS FOUNDATION TRUST",580,8395,0.73620689655172411,0.1396551724137931,241,186,68,39,42,4,559,0,0,9,0,12,0]
["QHL","RQ3","BIRMINGHAM WOMEN'S AND CHILDREN'S NHS FOUNDATION TRUST",75,4265,0.82666666666666666,0.14666666666666667,47,15,2,6,5,0,0,0,0,0,0,75,0]
["QHL","RXK","SANDWELL AND WEST BIRMINGHAM HOSPITALS NHS TRUST",1181,10782,0.60626587637595253,0.29466553767993225,496,220,75,102,246,42,1107,0,0,0,74,0,0]
["QHL","RRK","UNIVERSITY HOSPITALS BIRMINGHAM NHS FOUNDATION TRUST",2770,17344,0.64187725631768955,0.25920577617328522,1301,477,209,224,494,65,2770,0,0,0,0,0,0]
["QHM","RXP","COUNTY DURHAM AND DARLINGTON NHS FOUNDATION TRUST",198,9001,1,0,178,20,0,0,0,0,0,0,198,0,0,0,0]
["QHM","RR7","GATESHEAD HEALTH NHS FOUNDATION TRUST",207,7691,0.85990338164251212,9.6618357487922704E-2,146,32,9,7,13,0,204,0,3,0,0,0,0]
["QHM","RNN","NORTH CUMBRIA INTEGRATED CARE NHS FOUNDATION TRUST",621,5884,0.80515297906602257,0.11916264090177134,387,113,46,29,45,1,1,0,0,7,0,613,0]
["QHM","RVW","NORTH TEES AND HARTLEPOOL NHS FOUNDATION TRUST",72,4105,0.81944444444444442,0.125,38,21,4,2,7,0,72,0,0,0,0,0,0]
["QHM","RTF","NORTHUMBRIA HEALTHCARE NHS FOUNDATION TRUST",953,15805,0.82896117523609658,0.11647429171038824,626,164,45,46,65,7,746,0,207,0,0,0,0]
["QHM","RTR","SOUTH TEES HOSPITALS NHS FOUNDATION TRUST",718,13200,0.74651810584958223,0.1713091922005571,395,141,58,50,73,1,718,0,0,0,0,0,0]
["QHM","R0B","SOUTH TYNESIDE AND SUNDERLAND NHS FOUNDATION TRUST",21,10870,0.42857142857142855,0.47619047619047616,"*","*","*","*","*","*","*","*","*","*","*","*","*"]
["QHM","RTD","THE NEWCASTLE UPON TYNE HOSPITALS NHS FOUNDATION TRUST",3,17102,"*","*","*","*","*","*","*","*","*","*","*","*","*","*","*"]
["QJ2","RFS","CHESTERFIELD ROYAL HOSPITAL NHS FOUNDATION TRUST",439,439,0.8382687927107062,9.7949886104783598E-2,263,105,27,24,19,1,437,0,0,0,0,2,0]
["QJ2","RTG","UNIVERSITY HOSPITALS OF DERBY AND BURTON NHS FOUNDATION TRUST",1514,15755,0.73051519154557465,0.18494055482166447,792,314,122,113,167,6,1499,0,0,0,0,15,0]
["QJG","RDE","EAST SUFFOLK AND NORTH ESSEX NHS FOUNDATION TRUST",2418,15670,0.82547559966914807,0.11042183622828784,1586,410,128,99,168,27,1671,0,0,0,747,0,0]
["QJG","RGR","WEST SUFFOLK NHS FOUNDATION TRUST",935,5799,0.7893048128342246,0.13368983957219252,509,229,68,57,68,4,935,0,0,0,0,0,0]
["QJK","RH8","ROYAL DEVON UNIVERSITY HEALTHCARE NHS FOUNDATION TRUST",14,15511,0.7857142857142857,0.21428571428571427,11,0,0,0,3,0,0,0,7,0,0,7,0]
["QJK","RA9","TORBAY AND SOUTH DEVON NHS FOUNDATION TRUST",11,5286,1,0,9,2,0,0,0,0,0,0,0,11,0,0,0]
["QJK","RK9","UNIVERSITY HOSPITALS PLYMOUTH NHS TRUST",32,11510,0.9375,3.125E-2,28,2,1,1,0,0,0,20,12,0,0,0,0]
["QJM","RWD","UNITED LINCOLNSHIRE HOSPITALS NHS TRUST",1463,2728,0.75187969924812026,0.1572112098427888,777,323,125,91,139,8,1057,0,0,0,307,99,0]
["QK1","RWE","UNIVERSITY HOSPITALS OF LEICESTER NHS TRUST",2415,15359,0.80496894409937891,0.13871635610766045,1286,658,120,110,225,16,1629,330,456,0,0,0,0]
["QKK","RJ1","GUY'S AND ST THOMAS' NHS FOUNDATION TRUST",1086,8707,0.7965009208103131,9.9447513812154692E-2,605,260,100,42,66,13,814,0,270,0,0,2,0]
["QKK","RJZ","KING'S COLLEGE HOSPITAL NHS FOUNDATION TRUST",364,10008,0.66758241758241754,0.26923076923076922,157,86,23,28,70,0,336,0,0,14,0,14,0]
["QKK","RJ2","LEWISHAM AND GREENWICH NHS TRUST",1096,21675,0.68430656934306566,0.22536496350364962,474,276,93,86,161,6,1069,0,0,19,0,8,0]
["QKS","RN7","DARTFORD AND GRAVESHAM NHS TRUST",24,5711,0.83333333333333337,0.125,19,1,1,0,3,0,0,18,0,0,0,6,0]
["QKS","RVV","EAST KENT HOSPITALS UNIVERSITY NHS FOUNDATION TRUST",2059,14295,0.78193297717338517,0.15930063137445361,1236,374,121,145,183,0,2059,0,0,0,0,0,0]
["QKS","RWF","MAIDSTONE AND TUNBRIDGE WELLS NHS TRUST",343,17332,0.86880466472303208,7.5801749271137031E-2,209,89,19,12,14,0,0,0,117,0,0,226,0]
["QKS","RPA","MEDWAY NHS FOUNDATION TRUST",1003,7290,0.66500498504486538,0.24626121635094717,475,192,75,76,171,14,803,0,0,0,200,0,0]
["QM7","RWH","EAST AND NORTH HERTFORDSHIRE NHS TRUST",77,19168,0.81818181818181823,7.792207792207792E-2,36,27,8,5,1,0,2,0,14,14,47,0,0]
["QM7","RQW","THE PRINCESS ALEXANDRA HOSPITAL NHS TRUST",1178,8483,0.6443123938879457,0.26230899830220711,494,265,105,109,200,5,0,0,0,0,0,0,1178]
["QM7","RWG","WEST HERTFORDSHIRE TEACHING HOSPITALS NHS TRUST",25,8454,0.72,0.24,12,6,1,1,5,0,0,25,0,0,0,0,0]
["QMF","RF4","BARKING, HAVERING AND REDBRIDGE UNIVERSITY HOSPITALS NHS TRUST",251,8704,0.45019920318725098,0.47808764940239046,75,38,18,31,89,0,209,0,25,0,0,17,0]
["QMF","R1H","BARTS HEALTH NHS TRUST",2978,38162,0.57656145063801212,0.28274009402283412,1167,550,221,280,562,198,2803,0,126,0,0,49,0]
["QMF","RQX","HOMERTON HEALTHCARE NHS FOUNDATION TRUST",460,10642,0.70434782608695656,0.18260869565217391,235,89,51,24,60,1,460,0,0,0,0,0,0]
["QMJ","RP6","MOORFIELDS EYE HOSPITAL NHS FOUNDATION TRUST",2325,5989,0.92,3.6989247311827955E-2,1840,299,57,33,53,43,2325,0,0,0,0,0,0]
["QMJ","RAP","NORTH MIDDLESEX UNIVERSITY HOSPITAL NHS TRUST",2033,17283,0.58730939498278412,0.31431382193802265,836,358,150,156,483,50,1752,40,0,18,0,223,0]
["QMJ","RAL","ROYAL FREE LONDON NHS FOUNDATION TRUST",3004,18514,0.74367509986684421,0.17842876165113183,1759,475,182,167,369,52,2916,64,0,0,0,24,0]
["QMJ","RRV","UNIVERSITY COLLEGE LONDON HOSPITALS NHS FOUNDATION TRUST",2087,10848,0.84666986104456154,0.10685194058457115,1462,305,80,78,145,17,2049,0,0,0,38,0,0]
["QMM","RGP","JAMES PAGET UNIVERSITY HOSPITALS NHS FOUNDATION TRUST",68,5400,0.79411764705882348,0.13235294117647059,46,8,5,5,4,0,0,0,0,68,0,0,0]
["QMM","RM1","NORFOLK AND NORWICH UNIVERSITY HOSPITALS NHS FOUNDATION TRUST",1121,8611,0.76092774308652988,0.16413916146297949,602,251,80,78,106,4,0,0,170,0,0,951,0]
["QMM","RCX","THE QUEEN ELIZABETH HOSPITAL, KING'S LYNN, NHS FOUNDATION TRUST",286,4499,0.74825174825174823,0.19230769230769232,160,54,17,22,33,0,0,0,28,0,0,258,0]
["QNC","RJE","UNIVERSITY HOSPITALS OF NORTH MIDLANDS NHS TRUST",1049,16329,0.66158245948522398,0.21734985700667303,464,230,125,94,134,2,1044,5,0,0,0,0,0]
["QNQ","RDU","FRIMLEY HEALTH NHS FOUNDATION TRUST",9,0,0.44444444444444442,0.44444444444444442,4,0,1,0,4,0,0,0,9,0,0,0,0]
["QNX","RXC","EAST SUSSEX HEALTHCARE NHS TRUST",15,11275,0.6,0.33333333333333331,7,2,0,2,3,1,0,0,15,0,0,0,0]
["QNX","RPC","QUEEN VICTORIA HOSPITAL NHS FOUNDATION TRUST",281,1387,0.92526690391459077,4.9822064056939501E-2,225,35,5,5,9,2,193,0,0,0,88,0,0]
["QNX","RYR","UNIVERSITY HOSPITALS SUSSEX NHS FOUNDATION TRUST",2531,13693,0.7704464638482813,0.16001580403002766,1451,499,150,156,249,26,2293,0,0,0,238,0,0]
["QOC","RXW","THE SHREWSBURY AND TELFORD HOSPITAL NHS TRUST",39,13247,0.61538461538461542,0.28205128205128205,17,7,3,4,7,1,0,0,0,0,0,39,0]
["QOP","RMC","BOLTON NHS FOUNDATION TRUST",1213,8744,0.807914262159934,0.13520197856553998,794,186,57,47,117,12,1204,9,0,0,0,0,0]
["QOP","R0A","MANCHESTER UNIVERSITY NHS FOUNDATION TRUST",2439,37412,0.67035670356703569,0.24682246822468223,1177,458,172,194,408,30,2063,40,185,0,138,13,0]
["QOP","RWJ","STOCKPORT NHS FOUNDATION TRUST",1223,7072,0.78495502861815214,0.12837285363859363,738,222,81,69,88,25,901,250,72,0,0,0,0]
["QOP","RMP","TAMESIDE AND GLOSSOP INTEGRATED CARE NHS FOUNDATION TRUST",850,9046,0.71058823529411763,0.22941176470588234,463,141,46,61,134,5,0,0,14,0,0,836,0]
["QOP","RRF","WRIGHTINGTON, WIGAN AND LEIGH NHS FOUNDATION TRUST",1187,7086,0.67986520640269588,0.21145745577085087,587,220,100,87,164,29,858,0,0,61,267,1,0]
["QOQ","RCD","HARROGATE AND DISTRICT NHS FOUNDATION TRUST",449,3601,0.80846325167037858,0.10467706013363029,249,114,37,33,14,2,0,0,0,0,449,0,0]
["QOQ","RWA","HULL UNIVERSITY TEACHING HOSPITALS NHS TRUST",1454,9762,0.6272352132049519,0.26341127922971114,668,244,116,131,252,43,1298,0,0,0,156,0,0]
["QOQ","RJL","NORTHERN LINCOLNSHIRE AND GOOLE NHS FOUNDATION TRUST",384,5568,0.71354166666666663,0.19270833333333334,201,73,33,35,39,3,0,1,26,0,0,357,0]
["QOQ","RCB","YORK AND SCARBOROUGH TEACHING HOSPITALS NHS FOUNDATION TRUST",208,6830,0.79326923076923073,0.10096153846153846,118,47,22,14,7,0,208,0,0,0,0,0,0]
["QOX","RN3","GREAT WESTERN HOSPITALS NHS FOUNDATION TRUST",1091,6063,0.7231897341888176,0.19431714023831348,"*","*","*","*","*","*","*","*","*","*","*","*","*"]
["QOX","RNZ","SALISBURY NHS FOUNDATION TRUST",3,2935,"*","*","*","*","*","*","*","*","*","*","*","*","*","*","*"]
["QPM","RNQ","KETTERING GENERAL HOSPITAL NHS FOUNDATION TRUST",288,7039,0.68402777777777779,0.20833333333333334,154,43,25,27,33,6,0,0,0,0,0,288,0]
["QPM","RNS","NORTHAMPTON GENERAL HOSPITAL NHS TRUST",1640,10667,0.75731707317073171,0.15792682926829268,937,305,118,97,162,21,1410,0,0,7,207,16,0]
["QR1","RTE","GLOUCESTERSHIRE HOSPITALS NHS FOUNDATION TRUST",1118,6086,0.68067978533094808,0.2262969588550984,503,258,100,110,143,4,1040,0,0,0,67,11,0]
["QRL","RN5","HAMPSHIRE HOSPITALS NHS FOUNDATION TRUST",1587,8717,0.83868935097668562,0.10459987397605545,1019,312,79,84,82,11,1142,0,1,0,436,8,0]
["QRL","R1F","ISLE OF WIGHT NHS TRUST",22,3806,0.81818181818181823,4.5454545454545456E-2,17,1,2,1,0,1,0,0,22,0,0,0,0]
["QRL","RHU","PORTSMOUTH HOSPITALS UNIVERSITY NATIONAL HEALTH SERVICE TRUST",1990,12848,0.79798994974874371,0.12814070351758794,1293,295,120,107,148,27,1989,0,0,0,0,1,0]
["QRL","RHM","UNIVERSITY HOSPITAL SOUTHAMPTON NHS FOUNDATION TRUST",6,8347,0.5,0.33333333333333331,2,1,1,1,1,0,0,0,0,0,0,6,0]
["QRV","RQM","CHELSEA AND WESTMINSTER HOSPITAL NHS FOUNDATION TRUST",2992,14934,0.78877005347593587,0.14405080213903743,1853,507,177,151,280,24,2890,0,0,0,73,29,0]
["QRV","RYJ","IMPERIAL COLLEGE HEALTHCARE NHS TRUST",1130,17206,0.79734513274336283,0.1424778761061947,681,220,66,63,98,2,21,66,64,0,0,979,0]
["QRV","R1K","LONDON NORTH WEST UNIVERSITY HEALTHCARE NHS TRUST",60,6184,0.96666666666666667,0,49,9,2,0,0,0,0,0,59,0,0,1,0]
["QRV","RAS","THE HILLINGDON HOSPITALS NHS FOUNDATION TRUST",714,5775,0.70868347338935578,0.22969187675070027,373,133,43,46,118,1,0,0,32,0,0,682,0]
["QSL","RH5","SOMERSET NHS FOUNDATION TRUST",10,15397,0.4,0.5,4,0,1,3,2,0,0,0,1,0,0,9,0]
["QSL","RA4","YEOVIL DISTRICT HOSPITAL NHS FOUNDATION TRUST",66,4200,0.96969696969696972,3.0303030303030304E-2,59,5,0,0,2,0,0,27,35,4,0,0,0]
["QT1","RX1","NOTTINGHAM UNIVERSITY HOSPITALS NHS TRUST",236,9472,0.81779661016949157,0.14830508474576271,172,21,8,9,26,0,0,139,0,73,0,24,0]
["QT1","RK5","SHERWOOD FOREST HOSPITALS NHS FOUNDATION TRUST",1365,9247,0.90109890109890112,5.7875457875457878E-2,1028,202,47,41,38,9,1,0,0,1,0,1363,0]
["QT6","REF","ROYAL CORNWALL HOSPITALS NHS TRUST",1012,7545,0.79051383399209485,0.12648221343873517,574,226,81,61,67,3,910,102,0,0,0,0,0]
["QU9","RXQ","BUCKINGHAMSHIRE HEALTHCARE NHS TRUST",686,2995,0.60641399416909625,0.26676384839650147,278,138,71,66,117,16,631,0,0,0,55,0,0]
["QU9","RTH","OXFORD UNIVERSITY HOSPITALS NHS FOUNDATION TRUST",1875,7466,0.73599999999999999,0.1696,1008,372,156,132,186,21,1828,0,0,0,0,47,0]
["QU9","RHW","ROYAL BERKSHIRE NHS FOUNDATION TRUST",962,11174,0.83264033264033266,0.10706860706860707,634,167,55,35,68,3,862,0,98,0,0,2,0]
["QUA","RNA","THE DUDLEY GROUP NHS FOUNDATION TRUST",1253,4758,0.68555466879489224,0.16041500399042299,647,212,78,62,139,115,1234,0,14,0,5,0,0]
["QUA","RL4","THE ROYAL WOLVERHAMPTON NHS TRUST",1887,11467,0.7191308956014838,0.1976682564917859,1009,348,135,125,248,22,1321,0,0,0,566,0,0]
["QUA","RBK","WALSALL HEALTHCARE NHS TRUST",648,3805,0.72530864197530864,0.16975308641975309,321,149,60,36,74,8,323,0,0,0,325,0,0]
["QUE","RGT","CAMBRIDGE UNIVERSITY HOSPITALS NHS FOUNDATION TRUST",502,3365,0.6972111553784861,0.1693227091633466,186,164,64,42,43,3,228,0,14,236,0,24,0]
["QUE","RGN","NORTH WEST ANGLIA NHS FOUNDATION TRUST",1484,12384,0.59299191374663074,0.2917789757412399,618,262,116,131,302,55,1354,0,0,126,0,4,0]
["QUY","RVJ","NORTH BRISTOL NHS TRUST",0,4867,"NA","NA",0,0,0,0,0,0,0,0,0,0,0,0,0]
["QUY","RA7","UNIVERSITY HOSPITALS BRISTOL AND WESTON NHS FOUNDATION TRUST",1262,13050,0.80824088748019018,0.12361331220285261,769,251,76,66,90,10,1193,0,62,7,0,0,0]
["QVV","RBD","DORSET COUNTY HOSPITAL NHS FOUNDATION TRUST",1133,3112,0.81994704324801415,0.10238305383936452,718,211,70,46,70,18,1121,0,0,0,12,0,0]
["QVV","R0D","UNIVERSITY HOSPITALS DORSET NHS FOUNDATION TRUST",1405,10117,0.76014234875444842,0.15373665480427046,784,284,88,65,151,33,1360,0,0,28,0,17,0]
["QWE","RJ6","CROYDON HEALTH SERVICES NHS TRUST",1335,11719,0.7767790262172285,0.15655430711610488,745,292,86,76,133,3,1335,0,0,0,0,0,0]
["QWE","RVR","EPSOM AND ST HELIER UNIVERSITY HOSPITALS NHS TRUST",1436,10757,0.76671309192200554,0.14345403899721448,817,284,105,96,110,24,1328,10,0,9,83,6,0]
["QWE","RAX","KINGSTON HOSPITAL NHS FOUNDATION TRUST",513,8967,0.69395711500974655,0.20077972709551656,239,117,52,42,61,2,409,104,0,0,0,0,0]
["QWE","RJ7","ST GEORGE'S UNIVERSITY HOSPITALS NHS FOUNDATION TRUST",1319,9409,0.7088703563305534,0.18802122820318423,633,302,128,101,147,8,0,0,0,0,0,1319,0]
["QWO","RCF","AIREDALE NHS FOUNDATION TRUST",587,3035,0.77001703577512781,0.13798977853492334,343,109,49,30,51,5,582,0,0,0,0,5,0]
["QWO","RAE","BRADFORD TEACHING HOSPITALS NHS FOUNDATION TRUST",1110,6927,0.62792792792792795,0.27117117117117118,451,246,104,102,199,8,1,0,0,0,0,1109,0]
["QWO","RWY","CALDERDALE AND HUDDERSFIELD NHS FOUNDATION TRUST",683,12447,0.79502196193265007,0.1376281112737921,449,94,36,32,62,10,550,0,0,0,0,133,0]
["QWO","RR8","LEEDS TEACHING HOSPITALS NHS TRUST",2663,14571,0.7544123169357867,0.167104769057454,1532,477,171,127,318,38,2132,98,0,31,401,1,0]
["QWO","RXF","MID YORKSHIRE HOSPITALS NHS TRUST",1639,11569,0.72483221476510062,0.20378279438682123,900,288,116,89,245,1,1071,0,502,0,0,66,0]
["QWU","RLT","GEORGE ELIOT HOSPITAL NHS TRUST",1501,6250,0.77481678880746174,0.15789473684210525,822,341,81,78,159,20,1489,0,0,0,12,0,0]
["QWU","RJC","SOUTH WARWICKSHIRE NHS FOUNDATION TRUST",304,3924,0.79276315789473684,0.16447368421052633,181,60,13,24,26,0,0,0,3,0,0,301,0]
["QWU","RKB","UNIVERSITY HOSPITALS COVENTRY AND WARWICKSHIRE NHS TRUST",1496,16835,0.7185828877005348,0.20053475935828877,826,249,89,99,201,32,1369,28,0,0,90,9,0]
["QXU","RTK","ASHFORD AND ST PETER'S HOSPITALS NHS FOUNDATION TRUST",12,9989,0.5,8.3333333333333329E-2,5,1,2,0,1,3,12,0,0,0,0,0,0]
["QXU","RTP","SURREY AND SUSSEX HEALTHCARE NHS TRUST",612,6272,0.77941176470588236,0.1388888888888889,352,125,47,39,46,3,609,1,2,0,0,0,0]
["QYG","RBS","ALDER HEY CHILDREN'S NHS FOUNDATION TRUST",233,5551,0.68669527896995708,0.23175965665236051,118,42,19,26,28,0,211,22,0,0,0,0,0]
["QYG","RJN","EAST CHESHIRE NHS TRUST",669,2951,0.77279521674140506,0.14050822122571002,392,125,53,47,47,5,602,0,0,0,67,0,0]
["QYG","REM","LIVERPOOL UNIVERSITY HOSPITALS NHS FOUNDATION TRUST",1807,10095,0.65522966242390701,0.25290536801328167,897,287,113,144,313,53,1679,0,0,0,128,0,0]
["QYG","REP","LIVERPOOL WOMEN'S NHS FOUNDATION TRUST",94,1194,0.82978723404255317,0.11702127659574468,61,17,5,5,6,0,0,0,0,0,0,0,94]
["QYG","RBT","MID CHESHIRE HOSPITALS NHS FOUNDATION TRUST",1227,7963,0.78565607171964136,0.13202933985330073,726,238,86,65,97,15,1088,0,0,0,139,0,0]
["QYG","RVY","SOUTHPORT AND ORMSKIRK HOSPITAL NHS TRUST",1111,4828,0.82988298829882989,0.1323132313231323,724,198,39,79,68,3,1022,0,0,0,82,7,0]
["QYG","RBN","ST HELENS AND KNOWSLEY TEACHING HOSPITALS NHS TRUST",687,4455,0.75982532751091703,0.13537117903930132,394,128,57,38,55,15,631,0,2,0,54,0,0]
["QYG","RWW","WARRINGTON AND HALTON TEACHING HOSPITALS NHS FOUNDATION TRUST",1772,8879,0.70090293453724606,0.20993227990970656,945,297,127,131,241,31,1403,0,26,0,340,3,0]
["QYG","RBL","WIRRAL UNIVERSITY TEACHING HOSPITAL NHS FOUNDATION TRUST",692,5006,0.73554913294797686,0.17341040462427745,382,127,47,42,78,16,608,0,0,0,84,0,0]

{"sheet":"Sites","index":4,"n_rows":233,"n_cols":15,"rows_kept":233,"cut":false,"hidden":false,"merged":[[2,6,3,6],[2,7,3,7],[2,8,3,8],[2,9,2,14],[2,0,3,0],[2,1,3,1],[2,2,3,2],[2,3,3,3],[2,4,3,4],[2,5,3,5]]}
[]
[]
["ICB Code","Trust Code","Trust Name","Site Code","Site Name","Total Responses","Total Eligible","Percentage Positive","Percentage Negative","Breakdown of Responses"]
[null,null,null,null,null,null,null,null,null,"Very Good","Good","Neither Good nor Poor","Poor","Very Poor","Don't Know"]
[null,null,null,null,"England",114530,1149903,0.74515847376233302,0.17353531825722518,63866,21477,7712,7090,12785,1600]
[null,null,null,null,"Selection (excluding suppressed data)",{"$f":"SUBTOTAL(9,F7:F999)","v":114530},{"$f":"SUBTOTAL(9,G7:G999)","v":1149903},{"$f":"IFERROR((J6+K6)/F6, \"-\")","v":0.73630489827992662},{"$f":"IFERROR((M6+N6)/F6, \"-\")","v":0.17155330481096656},{"$f":"SUBTOTAL(9,J7:J999)","v":63104},21225,7634,7007,12641,1584]
["QE1","RXL","BLACKPOOL TEACHING HOSPITALS NHS FOUNDATION TRUST","RXL01","Blackpool Victoria Hospital - RXL01",312,4108,0.66346153846153844,0.25,151,56,27,29,49,0]
["QE1","RXR","EAST LANCASHIRE HOSPITALS NHS TRUST","RXR20","Royal Blackburn Hospital - RXR20",1060,11131,0.65943396226415096,0.24339622641509434,474,225,89,79,179,14]
["QE1","RXN","LANCASHIRE TEACHING HOSPITALS NHS FOUNDATION TRUST","RXN01","Chorley and South Ribble Hospital - RXN01",230,1494,0.87826086956521743,6.9565217391304349E-2,168,34,12,7,9,0]
["QE1","RXN","LANCASHIRE TEACHING HOSPITALS NHS FOUNDATION TRUST","RXN02","Royal Preston Hospital - RXN02",286,2509,0.58391608391608396,0.30069930069930068,114,53,33,30,56,0]
["QE1","RTX","UNIVERSITY HOSPITALS OF MORECAMBE BAY NHS FOUNDATION TRUST","RTXBU","Furness General Hospital - RTXBU",467,2574,0.82655246252676662,0.10278372591006424,294,92,31,19,29,2]
["QE1","RTX","UNIVERSITY HOSPITALS OF MORECAMBE BAY NHS FOUNDATION TRUST","RTX02","Royal Lancaster Infirmary - RTX02",627,3592,0.70972886762360443,0.19138755980861244,331,114,54,39,81,8]
["QE1","RTX","UNIVERSITY HOSPITALS OF MORECAMBE BAY NHS FOUNDATION TRUST","RTXBW","Westmorland General Hospital - RTXBW",524,2302,0.95229007633587781,1.1450381679389313E-2,441,58,16,1,5,3]
["QF7","RP5","DONCASTER AND BASSETLAW TEACHING HOSPITALS NHS FOUNDATION TRUST","RP5BA","Bassetlaw Hospital - RP5BA",1,4721,"*","*","*","*","*","*","*","*"]
["QF7","RP5","DONCASTER AND BASSETLAW TEACHING HOSPITALS NHS FOUNDATION TRUST","RP5DR","Doncaster Royal Infirmary - RP5DR",3,8477,"*","*","*","*","*","*","*","*"]
["QF7","RP5","DONCASTER AND BASSETLAW TEACHING HOSPITALS NHS FOUNDATION TRUST","RP5MM","Montagu Hospital - RP5MM",0,1790,"NA","NA",0,0,0,0,0,0]
["QF7","RCU","SHEFFIELD CHILDREN'S NHS FOUNDATION TRUST","RCUEF","Sheffield Children's Hospital - RCUEF",628,5367,0.77070063694267521,0.12101910828025478,378,106,61,32,44,7]
["QF7","RHQ","SHEFFIELD TEACHING HOSPITALS NHS FOUNDATION TRUST","RHQNG","Northern General Hospital - RHQNG",790,4112,0.70886075949367089,0.19493670886075951,434,126,60,53,101,16]
["QF7","RHQ","SHEFFIELD TEACHING HOSPITALS NHS FOUNDATION TRUST","RHQHH","Royal Hallamshire Hospital - RHQHH",208,919,0.96634615384615385,2.403846153846154E-2,177,24,2,1,4,0]
["QF7","RHQ","SHEFFIELD TEACHING HOSPITALS NHS FOUNDATION TRUST","RHQXXX","WiC_MIU - RHQXXX",417,1583,0.86091127098321341,8.8729016786570747E-2,281,78,19,19,18,2]
["QF7","RFR","THE ROTHERHAM NHS FOUNDATION TRUST","RFRPA","Rotherham District General Hospital - RFRPA",3,8070,"*","*","*","*","*","*","*","*"]
["QGH","RWP","WORCESTERSHIRE ACUTE HOSPITALS NHS TRUST","RWP01","Alexandra Hospital - RWP01",775,4164,0.88387096774193552,7.6129032258064513E-2,613,72,31,26,33,0]
["QGH","RWP","WORCESTERSHIRE ACUTE HOSPITALS NHS TRUST","RWP31","Kidderminster Hospital - RWP31",306,2025,0.9509803921568627,2.9411764705882353E-2,270,21,6,2,7,0]
["QGH","RWP","WORCESTERSHIRE ACUTE HOSPITALS NHS TRUST","RWP50","Worcestershire Royal Hospital - RWP50",966,4936,0.83229813664596275,0.12836438923395446,739,65,37,47,77,1]
["QGH","RLQ","WYE VALLEY NHS TRUST","RLQ01","Hereford County Hospital - RLQ01",0,6041,"NA","NA",0,0,0,0,0,0]
["QH8","RAJ","MID AND SOUTH ESSEX NHS FOUNDATION TRUST","RAJ12","Basildon Hospital - RAJ12",1113,5717,0.65139263252470803,0.22641509433962265,465,260,107,87,165,29]
["QH8","RAJ","MID AND SOUTH ESSEX NHS FOUNDATION TRUST","RAJ32","Mid Essex Hospital - RAJ32",1189,5108,0.80656013456686293,0.13456686291000841,715,244,56,57,103,14]
["QH8","RAJ","MID AND SOUTH ESSEX NHS FOUNDATION TRUST","RAJ01","Southend Hospital - RAJ01",759,3681,0.71277997364953882,0.1831357048748353,387,154,65,47,92,14]
["QHG","RC9","BEDFORDSHIRE HOSPITALS NHS FOUNDATION TRUST","RC979","Bedford Hospital South Wing - RC979",30,3829,0.3,0.6333333333333333,6,3,2,3,16,0]
["QHG","RC9","BEDFORDSHIRE HOSPITALS NHS FOUNDATION TRUST","RC971","Luton and Dunstable Hospital - RC971",68,9704,0.86764705882352944,0.10294117647058823,50,9,1,3,4,1]
["QHG","RD8","MILTON KEYNES UNIVERSITY HOSPITAL NHS FOUNDATION TRUST","RD816","Milton Keynes Hospital - RD816",580,8395,0.73620689655172411,0.1396551724137931,241,186,68,39,42,4]
["QHL","RQ3","BIRMINGHAM WOMEN'S AND CHILDREN'S NHS FOUNDATION TRUST","RQ301","Birmingham Children's Hospital - RQ301",75,4265,0.82666666666666666,0.14666666666666667,47,15,2,6,5,0]
["QHL","RXK","SANDWELL AND WEST BIRMINGHAM HOSPITALS NHS TRUST","RXK03","Birmingham Midland Eye Centre (Bmec) - RXK03",171,1216,0.70760233918128657,0.22807017543859648,83,38,9,17,22,2]
["QHL","RXK","SANDWELL AND WEST BIRMINGHAM HOSPITALS NHS TRUST","RXK02","City Hospital - RXK02",504,5357,0.59722222222222221,0.30357142857142855,218,83,34,44,109,16]
["QHL","RXK","SANDWELL AND WEST BIRMINGHAM HOSPITALS NHS TRUST","RXK01","Sandwell General Hospital - RXK01",506,4209,0.5810276679841897,0.30830039525691699,195,99,32,41,115,24]
["QHL","RRK","UNIVERSITY HOSPITALS BIRMINGHAM NHS FOUNDATION TRUST","RRK98","Good Hope Hospital - RRK98",837,4978,0.73476702508960579,0.18160095579450419,464,151,53,56,96,17]
["QHL","RRK","UNIVERSITY HOSPITALS BIRMINGHAM NHS FOUNDATION TRUST","RRK97","Heartlands Hospital - RRK97",899,6687,0.57842046718576201,0.31145717463848721,372,148,66,86,194,33]
["QHL","RRK","UNIVERSITY HOSPITALS BIRMINGHAM NHS FOUNDATION TRUST","RRK15","Queen Elizabeth Hospital Birmingham - RRK15",1034,5679,0.62185686653771766,0.27659574468085107,465,178,90,82,204,15]
["QHM","RXP","COUNTY DURHAM AND DARLINGTON NHS FOUNDATION TRUST","RXPCP","University Hospital Of North Durham - RXPCP",1,4081,"*","*","*","*","*","*","*","*"]
["QHM","RXP","COUNTY DURHAM AND DARLINGTON NHS FOUNDATION TRUST","RXPXXX","WiC_MIU - RXPXXX",197,4920,1,0,"*","*","*","*","*","*"]
["QHM","RR7","GATESHEAD HEALTH NHS FOUNDATION TRUST","RR7EN","Queen Elizabeth Hospital - RR7EN",170,6244,0.84705882352941175,0.1,118,26,9,7,10,0]
["QHM","RR7","GATESHEAD HEALTH NHS FOUNDATION TRUST","RR7XXX","WiC_MIU - RR7XXX",37,1447,0.91891891891891897,8.1081081081081086E-2,28,6,0,0,3,0]
["QHM","RNN","NORTH CUMBRIA INTEGRATED CARE NHS FOUNDATION TRUST","RNN62","Cumberland Infirmary - RNN62",386,3188,0.80569948186528495,0.11139896373056994,240,71,31,15,28,1]
["QHM","RNN","NORTH CUMBRIA INTEGRATED CARE NHS FOUNDATION TRUST","RNNBX","West Cumberland Hospital - RNNBX",235,2696,0.80425531914893622,0.13191489361702127,147,42,15,14,17,0]
["QHM","RVW","NORTH TEES AND HARTLEPOOL NHS FOUNDATION TRUST","RVWAE","University Hospital Of North Tees - RVWAE",72,4105,0.81944444444444442,0.125,38,21,4,2,7,0]
["QHM","RTF","NORTHUMBRIA HEALTHCARE NHS FOUNDATION TRUST","RTF86","The Northumbria - RTF86",348,4894,0.75,0.18103448275862069,199,62,22,24,39,2]
["QHM","RTF","NORTHUMBRIA HEALTHCARE NHS FOUNDATION TRUST","RTFXXX","WiC_MIU - RTFXXX",605,10911,0.87438016528925622,7.9338842975206617E-2,427,102,23,22,26,5]
["QHM","RTR","SOUTH TEES HOSPITALS NHS FOUNDATION TRUST","RTR45","Friarage Hospital Site - RTR45",135,2353,0.90370370370370368,5.9259259259259262E-2,110,12,5,3,5,0]
["QHM","RTR","SOUTH TEES HOSPITALS NHS FOUNDATION TRUST","RTRAT","The James Cook University Hospital - RTRAT",418,7959,0.70574162679425834,0.20813397129186603,197,98,35,34,53,1]
["QHM","RTR","SOUTH TEES HOSPITALS NHS FOUNDATION TRUST","RTRXXX","WiC_MIU - RTRXXX",165,2888,0.72121212121212119,0.16969696969696971,88,31,18,13,15,0]
["QHM","R0B","SOUTH TYNESIDE AND SUNDERLAND NHS FOUNDATION TRUST","R0B0Q","South Tyneside District Hospital - R0B0Q",5,0,0.6,0,"*","*","*","*","*","*"]
["QHM","R0B","SOUTH TYNESIDE AND SUNDERLAND NHS FOUNDATION TRUST","R0B0X","Sunderland Eye Infirmary – R0B0X",13,1358,0.23076923076923078,0.76923076923076927,3,0,0,2,8,0]
["QHM","R0B","SOUTH TYNESIDE AND SUNDERLAND NHS FOUNDATION TRUST","R0B01","Sunderland Royal Hospital – R0B01",3,9512,"*","*","*","*","*","*","*","*"]
["QHM","RTD","THE NEWCASTLE UPON TYNE HOSPITALS NHS FOUNDATION TRUST","RTD02","The Royal Victoria Infirmary - RTD02",3,17102,"*","*","*","*","*","*","*","*"]
["QJ2","RFS","CHESTERFIELD ROYAL HOSPITAL NHS FOUNDATION TRUST","RFSDA","Chesterfield Royal Hospital - RFSDA",439,439,0.8382687927107062,9.7949886104783598E-2,263,105,27,24,19,1]
["QJ2","RTG","UNIVERSITY HOSPITALS OF DERBY AND BURTON NHS FOUNDATION TRUST","RTG02","Queen's Hospital, Burton Upon Trent - RTG02",331,4055,0.71601208459214505,0.17220543806646527,148,89,35,20,37,2]
["QJ2","RTG","UNIVERSITY HOSPITALS OF DERBY AND BURTON NHS FOUNDATION TRUST","RTGFG","Royal Derby Hospital - RTGFG",869,6906,0.67088607594936711,0.23475258918296893,406,177,80,82,122,2]
["QJ2","RTG","UNIVERSITY HOSPITALS OF DERBY AND BURTON NHS FOUNDATION TRUST","RTG54","Samuel Johnson - RTG54",207,2669,0.92270531400966183,4.8309178743961352E-2,160,31,5,6,4,1]
["QJ2","RTG","UNIVERSITY HOSPITALS OF DERBY AND BURTON NHS FOUNDATION TRUST","RTG50","Sir Robert Peel - RTG50",107,2125,0.88785046728971961,8.4112149532710276E-2,78,17,2,5,4,1]
["QJG","RDE","EAST SUFFOLK AND NORTH ESSEX NHS FOUNDATION TRUST","RDEE2","Clacton and District Hospital - RDEE2",477,4102,0.93291404612159334,4.1928721174004195E-2,396,49,11,7,13,1]
["QJG","RDE","EAST SUFFOLK AND NORTH ESSEX NHS FOUNDATION TRUST","RDEE4","Colchester General Hospital - RDEE4",637,3604,0.80219780219780223,0.11459968602825746,379,132,42,26,47,11]
["QJG","RDE","EAST SUFFOLK AND NORTH ESSEX NHS FOUNDATION TRUST","RDE03","Ipswich Hospital - RDE03",396,2113,0.73232323232323238,0.16414141414141414,204,86,31,20,45,10]
["QJG","RDE","EAST SUFFOLK AND NORTH ESSEX NHS FOUNDATION TRUST","RDEEE","The Fryatt Hospital and Mayflower Medical Centre - RDEEE",18,465,0.94444444444444442,5.5555555555555552E-2,13,4,0,0,1,0]
["QJG","RDE","EAST SUFFOLK AND NORTH ESSEX NHS FOUNDATION TRUST","RDE81","UTC-Colechester - RDE81",890,5386,0.82359550561797756,0.12134831460674157,594,139,44,46,62,5]
["QJG","RGR","WEST SUFFOLK NHS FOUNDATION TRUST","RGR50","West Suffolk Hospital - RGR50",935,5799,0.7893048128342246,0.13368983957219252,509,229,68,57,68,4]
["QJK","RH8","ROYAL DEVON UNIVERSITY HEALTHCARE NHS FOUNDATION TRUST","RH880","North Devon District Hospital - RH880",14,4534,0.7857142857142857,0.21428571428571427,11,0,0,0,3,0]
["QJK","RH8","ROYAL DEVON UNIVERSITY HEALTHCARE NHS FOUNDATION TRUST","RH801","Royal Devon and Exeter Hospital (Wonford) - RH801",0,7652,"NA","NA",0,0,0,0,0,0]
["QJK","RH8","ROYAL DEVON UNIVERSITY HEALTHCARE NHS FOUNDATION TRUST","RH8XXX","WiC_MIU - RH8XXX",0,3325,"NA","NA",0,0,0,0,0,0]
["QJK","RA9","TORBAY AND SOUTH DEVON NHS FOUNDATION TRUST","RA901","Torbay Hospital - RA901",11,5286,1,0,9,2,0,0,0,0]
["QJK","RK9","UNIVERSITY HOSPITALS PLYMOUTH NHS TRUST","RK950","Derriford Hospital - RK950",12,7008,0.83333333333333337,8.3333333333333329E-2,8,2,1,1,0,0]
["QJK","RK9","UNIVERSITY HOSPITALS PLYMOUTH NHS TRUST","RK9XXX","WiC_MIU - RK9XXX",20,4502,1,0,20,0,0,0,0,0]
["QJM","RWD","UNITED LINCOLNSHIRE HOSPITALS NHS TRUST","RWDLP","Grantham and District Hospital - RWDLP",391,737,0.84910485933503832,7.1611253196930943E-2,252,80,31,13,15,0]
["QJM","RWD","UNITED LINCOLNSHIRE HOSPITALS NHS TRUST","RWDDA","Lincoln County Hospital - RWDDA",661,1131,0.71104387291981841,0.19515885022692889,321,149,57,50,79,5]
["QJM","RWD","UNITED LINCOLNSHIRE HOSPITALS NHS TRUST","RWDLA","Pilgrim Hospital - RWDLA",411,860,0.72506082725060828,0.17761557177615572,204,94,37,28,45,3]
["QK1","RWE","UNIVERSITY HOSPITALS OF LEICESTER NHS TRUST","RWEAA","Leicester Royal Infirmary - RWEAA",2415,15359,0.80496894409937891,0.13871635610766045,1286,658,120,110,225,16]
["QKK","RJ1","GUY'S AND ST THOMAS' NHS FOUNDATION TRUST","RJ122","St Thomas' Hospital - RJ122",874,7065,0.78032036613272315,0.10640732265446225,463,219,86,37,56,13]
["QKK","RJ1","GUY'S AND ST THOMAS' NHS FOUNDATION TRUST","RJ1XXX","WiC_MIU - RJ1XXX",212,1642,0.8632075471698113,7.0754716981132074E-2,142,41,14,5,10,0]
["QKK","RJZ","KING'S COLLEGE HOSPITAL NHS FOUNDATION TRUST","RJZ01","King's College Hospital (Denmark Hill) - RJZ01",28,6482,0.25,0.7142857142857143,3,4,1,2,18,0]
["QKK","RJZ","KING'S COLLEGE HOSPITAL NHS FOUNDATION TRUST","RJZ30","Princess Royal University Hospital - RJZ30",336,3526,0.70238095238095233,0.23214285714285715,154,82,22,26,52,0]
["QKK","RJ2","LEWISHAM AND GREENWICH NHS TRUST","RJ231","Queen Elizabeth Hospital - RJ231",458,9071,0.60698689956331875,0.27292576419213976,170,108,52,39,86,3]
["QKK","RJ2","LEWISHAM AND GREENWICH NHS TRUST","RJ224","University Hospital Lewisham - RJ224",638,12604,0.7398119122257053,0.19122257053291536,304,168,41,47,75,3]
["QKS","RN7","DARTFORD AND GRAVESHAM NHS TRUST","RN707","Darent Valley Hospital - RN707",24,5711,0.83333333333333337,0.125,19,1,1,0,3,0]
["QKS","RVV","EAST KENT HOSPITALS UNIVERSITY NHS FOUNDATION TRUST","RVV02","Buckland Hospital - RVV02",273,2057,0.87912087912087911,7.3260073260073263E-2,207,33,13,15,5,0]
["QKS","RVV","EAST KENT HOSPITALS UNIVERSITY NHS FOUNDATION TRUST","RVVKC","Kent and Canterbury Hospital - RVVKC",335,2234,0.91044776119402981,5.3731343283582089E-2,267,38,12,10,8,0]
["QKS","RVV","EAST KENT HOSPITALS UNIVERSITY NHS FOUNDATION TRUST","RVV09","Queen Elizabeth The Queen Mother Hospital - RVV09",720,4939,0.80555555555555558,0.1361111111111111,421,159,42,47,51,0]
["QKS","RVV","EAST KENT HOSPITALS UNIVERSITY NHS FOUNDATION TRUST","RVV01","William Harvey Hospital (Ashford) - RVV01",731,5065,0.66347469220246236,0.26265389876880985,341,144,54,73,119,0]
["QKS","RWF","MAIDSTONE AND TUNBRIDGE WELLS NHS TRUST","RWF03","Maidstone District General Hospital - RWF03",135,8516,0.87407407407407411,7.407407407407407E-2,83,35,7,6,4,0]
["QKS","RWF","MAIDSTONE AND TUNBRIDGE WELLS NHS TRUST","RWFTW","The Tunbridge Wells Hospital - RWFTW",208,8816,0.86538461538461542,7.6923076923076927E-2,126,54,12,6,10,0]
["QKS","RWF","MAIDSTONE AND TUNBRIDGE WELLS NHS TRUST","RWFXXX","WiC_MIU - RWFXXX",0,0,"NA","NA",0,0,0,0,0,0]
["QKS","RPA","MEDWAY NHS FOUNDATION TRUST","RPA02","Medway Maritime Hospital - RPA02",1003,7290,0.66500498504486538,0.24626121635094717,475,192,75,76,171,14]
["QM7","RWH","EAST AND NORTH HERTFORDSHIRE NHS TRUST","RWH01","Lister Hospital - RWH01",36,12402,0.69444444444444442,0.1388888888888889,9,16,6,4,1,0]
["QM7","RWH","EAST AND NORTH HERTFORDSHIRE NHS TRUST","RWH20","Queen Elizabeth I I Hospital - RWH20",41,6766,0.92682926829268297,2.4390243902439025E-2,27,11,2,1,0,0]
["QM7","RQW","THE PRINCESS ALEXANDRA HOSPITAL NHS TRUST","RQWG0","Princess Alexandra Hospital - RQWG0",1178,8483,0.6443123938879457,0.26230899830220711,494,265,105,109,200,5]
["QM7","RWG","WEST HERTFORDSHIRE TEACHING HOSPITALS NHS TRUST","RWG08","Hemel Hempstead Hospital - RWG08",0,3744,"NA","NA",0,0,0,0,0,0]
["QM7","RWG","WEST HERTFORDSHIRE TEACHING HOSPITALS NHS TRUST","RWG02","Watford General Hospital - RWG02",25,4710,0.72,0.24,12,6,1,1,5,0]
["QMF","RF4","BARKING, HAVERING AND REDBRIDGE UNIVERSITY HOSPITALS NHS TRUST","RF4DG","King George Hospital - RF4DG",87,3142,0.32183908045977011,0.62068965517241381,18,10,5,14,40,0]
["QMF","RF4","BARKING, HAVERING AND REDBRIDGE UNIVERSITY HOSPITALS NHS TRUST","RF4QH","Queen's Hospital - RF4QH",164,5562,0.51829268292682928,0.40243902439024393,57,28,13,17,49,0]
["QMF","R1H","BARTS HEALTH NHS TRUST","R1HNH","Newham General Hospital - R1HNH",343,5708,0.58017492711370267,0.27405247813411077,129,70,25,27,67,25]
["QMF","R1H","BARTS HEALTH NHS TRUST","R1HM0","St Bartholomew's Hospital - R1HM0",0,0,"NA","NA",0,0,0,0,0,0]
["QMF","R1H","BARTS HEALTH NHS TRUST","R1H12","The Royal London Hospital - R1H12",503,7010,0.64811133200795223,0.20874751491053678,233,93,44,46,59,28]
["QMF","R1H","BARTS HEALTH NHS TRUST","R1HKH","Whipps Cross University Hospital - R1HKH",850,6542,0.67764705882352938,0.21882352941176469,401,175,61,61,125,27]
["QMF","R1H","BARTS HEALTH NHS TRUST","R1HXXX","WiC_MIU - R1HXXX",1282,18902,0.48049921996879874,0.35647425897035884,404,212,91,146,311,118]
["QMF","RQX","HOMERTON HEALTHCARE NHS FOUNDATION TRUST","RQXM1","Homerton University Hospital - RQXM1",460,10642,0.70434782608695656,0.18260869565217391,235,89,51,24,60,1]
["QMJ","RP6","MOORFIELDS EYE HOSPITAL NHS FOUNDATION TRUST","RP601","Moorfields Eye Hospital (City Road) - RP601",2325,5989,0.92,3.6989247311827955E-2,1840,299,57,33,53,43]
["QMJ","RAP","NORTH MIDDLESEX UNIVERSITY HOSPITAL NHS TRUST","RAPNM","North Middlesex Hospital - RAPNM",2033,17283,0.58730939498278412,0.31431382193802265,836,358,150,156,483,50]
["QMJ","RAL","ROYAL FREE LONDON NHS FOUNDATION TRUST","RAL26","Barnet Hospital - RAL26",1336,7989,0.70958083832335328,0.20059880239520958,722,226,88,69,199,32]
["QMJ","RAL","ROYAL FREE LONDON NHS FOUNDATION TRUST","RALC7","Chase Farm Hospital - RALC7",64,2717,0.84375,9.375E-2,47,7,3,2,4,1]
["QMJ","RAL","ROYAL FREE LONDON NHS FOUNDATION TRUST","RAL01","Royal Free Hospital - RAL01",1604,7808,0.76807980049875313,0.1633416458852868,990,242,91,96,166,19]
["QMJ","RRV","UNIVERSITY COLLEGE LONDON HOSPITALS NHS FOUNDATION TRUST","RRV03","University College Hospital - RRV03",2087,10848,0.84666986104456154,0.10685194058457115,1462,305,80,78,145,17]
["QMM","RGP","JAMES PAGET UNIVERSITY HOSPITALS NHS FOUNDATION TRUST","RGP75","James Paget University Hospital - RGP75",68,5400,0.79411764705882348,0.13235294117647059,46,8,5,5,4,0]
["QMM","RM1","NORFOLK AND NORWICH UNIVERSITY HOSPITALS NHS FOUNDATION TRUST","RM102","Norfolk and Norwich University Hospital - RM102",1121,8611,0.76092774308652988,0.16413916146297949,602,251,80,78,106,4]
["QMM","RCX","THE QUEEN ELIZABETH HOSPITAL, KING'S LYNN, NHS FOUNDATION TRUST","RCX70","The Queen Elizabeth Hospital - RCX70",286,4499,0.74825174825174823,0.19230769230769232,160,54,17,22,33,0]
["QNC","RJE","UNIVERSITY HOSPITALS OF NORTH MIDLANDS NHS TRUST","RJE09","County Hospital - RJE09",228,2819,0.76754385964912286,0.14473684210526316,123,52,19,16,17,1]
["QNC","RJE","UNIVERSITY HOSPITALS OF NORTH MIDLANDS NHS TRUST","RJE01","Royal Stoke University Hospital - RJE01",723,7782,0.59889349930843705,0.25864453665283543,267,166,102,76,111,1]
["QNC","RJE","UNIVERSITY HOSPITALS OF NORTH MIDLANDS NHS TRUST","RJEXXX","WiC_MIU - RJEXXX",98,5728,0.87755102040816324,8.1632653061224483E-2,74,12,4,2,6,0]
["QNQ","RDU","FRIMLEY HEALTH NHS FOUNDATION TRUST","RDU50","Wexham Park Hospital - RDU50",9,0,0.44444444444444442,0.44444444444444442,4,0,1,0,4,0]
["QNX","RXC","EAST SUSSEX HEALTHCARE NHS TRUST","RXC01","Conquest Hospital - RXC01",11,5352,0.45454545454545453,0.45454545454545453,"*","*","*","*","*","*"]
["QNX","RXC","EAST SUSSEX HEALTHCARE NHS TRUST","RXC02","Eastbourne District General Hospital - RXC02",4,5923,"*","*","*","*","*","*","*","*"]
["QNX","RPC","QUEEN VICTORIA HOSPITAL NHS FOUNDATION TRUST","RPC04","Queen Victoria Hospital (East Grinstead) - RPC04",281,1387,0.92526690391459077,4.9822064056939501E-2,225,35,5,5,9,2]
["QNX","RYR","UNIVERSITY HOSPITALS SUSSEX NHS FOUNDATION TRUST","N6J7V","Princess Royal Hospital - N6J7V",786,3588,0.78753180661577604,0.13231552162849872,448,171,53,43,61,10]
["QNX","RYR","UNIVERSITY HOSPITALS SUSSEX NHS FOUNDATION TRUST","E0A3H","Royal Sussex County Hospital - E0A3H",1149,6123,0.71279373368146215,0.21583986074847694,597,222,67,86,162,15]
["QNX","RYR","UNIVERSITY HOSPITALS SUSSEX NHS FOUNDATION TRUST","X5M8P","Sussex Eye Hospital - X5M8P",314,1435,0.92356687898089174,3.8216560509554139E-2,238,52,12,7,5,0]
["QNX","RYR","UNIVERSITY HOSPITALS SUSSEX NHS FOUNDATION TRUST","G0W1C","The Royal Alexandra Children's Hospital - G0W1C",282,2547,0.78723404255319152,0.1453900709219858,168,54,18,20,21,1]
["QOC","RXW","THE SHREWSBURY AND TELFORD HOSPITAL NHS TRUST","RXWAS","Royal Shrewsbury Hospital - RXWAS",30,6204,0.6333333333333333,0.26666666666666666,15,4,3,2,6,0]
["QOC","RXW","THE SHREWSBURY AND TELFORD HOSPITAL NHS TRUST","RXWAT","The Princess Royal Hospital - RXWAT",9,7043,0.55555555555555558,0.33333333333333331,2,3,0,2,1,1]
["QOP","RMC","BOLTON NHS FOUNDATION TRUST","RMC01","Royal Bolton Hospital - RMC01",1213,8744,0.807914262159934,0.13520197856553998,794,186,57,47,117,12]
["QOP","R0A","MANCHESTER UNIVERSITY NHS FOUNDATION TRUST","R0A04","Manchester Royal Eye Hospital - R0A04",110,2266,0.97272727272727277,1.8181818181818181E-2,70,37,1,1,1,0]
["QOP","R0A","MANCHESTER UNIVERSITY NHS FOUNDATION TRUST","R0A02","Manchester Royal Infirmary - R0A02",592,8991,0.48310810810810811,0.40878378378378377,184,102,55,55,187,9]
["QOP","R0A","MANCHESTER UNIVERSITY NHS FOUNDATION TRUST","R0A66","North Manchester General Hospital -R0A66",369,9987,0.68834688346883466,0.21138211382113822,188,66,28,32,46,9]
["QOP","R0A","MANCHESTER UNIVERSITY NHS FOUNDATION TRUST","R0A03","Royal Manchester Children's Hospital - R0A03",342,4655,0.74561403508771928,0.16666666666666666,194,61,27,29,28,3]
["QOP","R0A","MANCHESTER UNIVERSITY NHS FOUNDATION TRUST","R0A09","Trafford General Hospital - R0A09",82,3063,0.98780487804878048,0,73,8,1,0,0,0]
["QOP","R0A","MANCHESTER UNIVERSITY NHS FOUNDATION TRUST","R0A07","Wythenshawe Hospital - R0A07",944,8450,0.69067796610169496,0.23622881355932204,468,184,60,77,146,9]
["QOP","RWJ","STOCKPORT NHS FOUNDATION TRUST","RWJ09","Stepping Hill Hospital - RWJ09",1223,7072,0.78495502861815214,0.12837285363859363,738,222,81,69,88,25]
["QOP","RMP","TAMESIDE AND GLOSSOP INTEGRATED CARE NHS FOUNDATION TRUST","RMP01","Tameside General Hospital - RMP01",850,9046,0.71058823529411763,0.22941176470588234,463,141,46,61,134,5]
["QOP","RRF","WRIGHTINGTON, WIGAN AND LEIGH NHS FOUNDATION TRUST","RRF02","Royal Albert Edward Infirmary - RRF02",1187,7086,0.67986520640269588,0.21145745577085087,587,220,100,87,164,29]
["QOQ","RCD","HARROGATE AND DISTRICT NHS FOUNDATION TRUST","RCD01","Harrogate District Hospital - RCD01",449,2814,0.80846325167037858,0.10467706013363029,249,114,37,33,14,2]
["QOQ","RCD","HARROGATE AND DISTRICT NHS FOUNDATION TRUST","RCD02","Ripon and District Community Hospital - RCD02",0,14,"NA","NA",0,0,0,0,0,0]
["QOQ","RCD","HARROGATE AND DISTRICT NHS FOUNDATION TRUST","RCDXXX","WiC_MIU - RCDXXX",0,773,"NA","NA",0,0,0,0,0,0]
["QOQ","RWA","HULL UNIVERSITY TEACHING HOSPITALS NHS TRUST","RWA01","Hull Royal Infirmary - RWA01",1454,9762,0.6272352132049519,0.26341127922971114,668,244,116,131,252,43]
["QOQ","RJL","NORTHERN LINCOLNSHIRE AND GOOLE NHS FOUNDATION TRUST","RJL30","Diana, Princess Of Wales Hospital - RJL30",185,3018,0.6594594594594595,0.23243243243243245,90,32,18,19,24,2]
["QOQ","RJL","NORTHERN LINCOLNSHIRE AND GOOLE NHS FOUNDATION TRUST","RJL32","Scunthorpe General Hospital - RJL32",199,2550,0.76381909547738691,0.15577889447236182,111,41,15,16,15,1]
["QOQ","RCB","YORK AND SCARBOROUGH TEACHING HOSPITALS NHS FOUNDATION TRUST","RCBCA","Scarborough General Hospital - RCBCA",43,1915,0.83720930232558144,0.16279069767441862,23,13,0,1,6,0]
["QOQ","RCB","YORK AND SCARBOROUGH TEACHING HOSPITALS NHS FOUNDATION TRUST","RCB55","York Hospital - RCB55",165,4915,0.78181818181818186,8.4848484848484854E-2,95,34,22,13,1,0]
["QOX","RN3","GREAT WESTERN HOSPITALS NHS FOUNDATION TRUST","RN3TC","The Brunel NHS Treatment Centre - RN3TC",618,3439,0.75889967637540456,0.16828478964401294,"*","*","*","*","*","*"]
["QOX","RN3","GREAT WESTERN HOSPITALS NHS FOUNDATION TRUST","RN325","The Great Western Hospital - RN325",473,2624,0.67653276955602537,0.22832980972515857,"*","*","*","*","*","*"]
["QOX","RNZ","SALISBURY NHS FOUNDATION TRUST","RNZ02","Salisbury District Hospital - RNZ02",3,2935,"*","*","*","*","*","*","*","*"]
["QPM","RNQ","KETTERING GENERAL HOSPITAL NHS FOUNDATION TRUST","RNQ51","Kettering General Hospital - RNQ51",288,7039,0.68402777777777779,0.20833333333333334,154,43,25,27,33,6]
["QPM","RNS","NORTHAMPTON GENERAL HOSPITAL NHS TRUST","RNS01","Northampton General Hospital (Acute) - RNS01",1640,10667,0.75731707317073171,0.15792682926829268,937,305,118,97,162,21]
["QR1","RTE","GLOUCESTERSHIRE HOSPITALS NHS FOUNDATION TRUST","RTE01","Cheltenham General Hospital - RTE01",488,2540,0.76024590163934425,0.17008196721311475,260,111,33,40,43,1]
["QR1","RTE","GLOUCESTERSHIRE HOSPITALS NHS FOUNDATION TRUST","RTE03","Gloucestershire Royal Hospital - RTE03",630,3546,0.61904761904761907,0.26984126984126983,243,147,67,70,100,3]
["QRL","RN5","HAMPSHIRE HOSPITALS NHS FOUNDATION TRUST","RN542","Andover War Memorial Hospital - RN542",117,560,0.89743589743589747,5.128205128205128E-2,91,14,6,2,4,0]
["QRL","RN5","HAMPSHIRE HOSPITALS NHS FOUNDATION TRUST","RN506","Basingstoke and North Hampshire Hospital - RN506",814,4491,0.81449631449631454,0.12285012285012285,484,179,43,52,48,8]
["QRL","RN5","HAMPSHIRE HOSPITALS NHS FOUNDATION TRUST","RN541","Royal Hampshire County Hospital - RN541",656,3666,0.85823170731707321,9.1463414634146339E-2,444,119,30,30,30,3]
["QRL","R1F","ISLE OF WIGHT NHS TRUST","R1F01","St Mary's Hospital - R1F01",22,3806,0.81818181818181823,4.5454545454545456E-2,17,1,2,1,0,1]
["QRL","RHU","PORTSMOUTH HOSPITALS UNIVERSITY NATIONAL HEALTH SERVICE TRUST","RHU03","Queen Alexandra Hospital - RHU03",1330,9207,0.76992481203007523,0.14586466165413534,816,208,86,80,114,26]
["QRL","RHU","PORTSMOUTH HOSPITALS UNIVERSITY NATIONAL HEALTH SERVICE TRUST","RHUXXX","WiC_MIU - RHUXXX",660,3641,0.8545454545454545,9.2424242424242423E-2,477,87,34,27,34,1]
["QRL","RHM","UNIVERSITY HOSPITAL SOUTHAMPTON NHS FOUNDATION TRUST","RHM01","Southampton General Hospital - RHM01",6,8347,0.5,0.33333333333333331,2,1,1,1,1,0]
["QRV","RQM","CHELSEA AND WESTMINSTER HOSPITAL NHS FOUNDATION TRUST","RQM01","Chelsea and Westminster Hospital - RQM01",518,2351,0.84749034749034746,0.11196911196911197,373,66,15,18,40,6]
["QRV","RQM","CHELSEA AND WESTMINSTER HOSPITAL NHS FOUNDATION TRUST","RQM91","West Middlesex University Hospital - RQM91",905,4522,0.78784530386740337,0.13370165745856355,589,124,64,37,84,7]
["QRV","RQM","CHELSEA AND WESTMINSTER HOSPITAL NHS FOUNDATION TRUST","RQMXXX","WiC_MIU - RQMXXX",1569,8061,0.76991714467813899,0.16061185468451242,891,317,98,96,156,11]
["QRV","RYJ","IMPERIAL COLLEGE HEALTHCARE NHS TRUST","RYJ02","Charing Cross Hospital - RYJ02",383,4397,0.84856396866840733,0.1174934725848564,261,64,13,22,23,0]
["QRV","RYJ","IMPERIAL COLLEGE HEALTHCARE NHS TRUST","RYJ01","St Mary's Hospital (HQ) - RYJ01",304,6128,0.6875,0.22697368421052633,170,39,26,19,50,0]
["QRV","RYJ","IMPERIAL COLLEGE HEALTHCARE NHS TRUST","RYJ07","Western Eye Hospital - RYJ07",395,3822,0.82784810126582276,0.10379746835443038,218,109,25,22,19,2]
["QRV","RYJ","IMPERIAL COLLEGE HEALTHCARE NHS TRUST","RYJXXX","WiC_MIU - RYJXXX",48,2859,0.83333333333333337,0.125,32,8,2,0,6,0]
["QRV","R1K","LONDON NORTH WEST UNIVERSITY HEALTHCARE NHS TRUST","R1K04","Ealing Hospital - R1K04",45,1361,0.97777777777777775,0,35,9,1,0,0,0]
["QRV","R1K","LONDON NORTH WEST UNIVERSITY HEALTHCARE NHS TRUST","R1K01","Northwick Park Hospital - R1K01",15,4823,0.93333333333333335,0,14,0,1,0,0,0]
["QRV","RAS","THE HILLINGDON HOSPITALS NHS FOUNDATION TRUST","RAS01","Hillingdon Hospital - RAS01",463,4486,0.58315334773218142,0.3282937365010799,163,107,40,43,109,1]
["QRV","RAS","THE HILLINGDON HOSPITALS NHS FOUNDATION TRUST","RAS02","Mount Vernon Hospital Site - RAS02",251,1289,0.94023904382470125,4.7808764940239043E-2,210,26,3,3,9,0]
["QSL","RH5","SOMERSET NHS FOUNDATION TRUST","RH5A8","Musgrove Park Hospital - RH5A8",1,5297,"*","*","*","*","*","*","*","*"]
["QSL","RH5","SOMERSET NHS FOUNDATION TRUST","RH5XXX","Wic MIU - RH5XXX",9,10100,0.44444444444444442,0.55555555555555558,"*","*","*","*","*","*"]
["QSL","RA4","YEOVIL DISTRICT HOSPITAL NHS FOUNDATION TRUST","RA430","Yeovil District Hospital - RA430",66,4200,0.96969696969696972,3.0303030303030304E-2,59,5,0,0,2,0]
["QT1","RX1","NOTTINGHAM UNIVERSITY HOSPITALS NHS TRUST","RX1RA","Nottingham University Hospitals NHS Trust - Queen's Medical Centre Campus - RX1RA",236,9472,0.81779661016949157,0.14830508474576271,172,21,8,9,26,0]
["QT1","RK5","SHERWOOD FOREST HOSPITALS NHS FOUNDATION TRUST","RK5BC","King's Mill Hospital - RK5BC",585,6708,0.84615384615384615,0.1111111111111111,381,114,24,32,33,1]
["QT1","RK5","SHERWOOD FOREST HOSPITALS NHS FOUNDATION TRUST","RK5XXX","WiC_MIU - RK5XXX",780,2539,0.94230769230769229,1.7948717948717947E-2,647,88,23,9,5,8]
["QT6","REF","ROYAL CORNWALL HOSPITALS NHS TRUST","REF12","Royal Cornwall Hospital (Treliske) - REF12",744,5511,0.771505376344086,0.13440860215053763,405,169,68,49,51,2]
["QT6","REF","ROYAL CORNWALL HOSPITALS NHS TRUST","REF01","West Cornwall Hospital (Penzance) - REF01",268,2034,0.84328358208955223,0.1044776119402985,169,57,13,12,16,1]
["QU9","RXQ","BUCKINGHAMSHIRE HEALTHCARE NHS TRUST","RXQ02","Stoke Mandeville Hospital - RXQ02",686,2995,0.60641399416909625,0.26676384839650147,278,138,71,66,117,16]
["QU9","RTH","OXFORD UNIVERSITY HOSPITALS NHS FOUNDATION TRUST","RTH05","Horton General Hospital - RTH05",698,2707,0.77650429799426934,0.13753581661891118,389,153,55,40,56,5]
["QU9","RTH","OXFORD UNIVERSITY HOSPITALS NHS FOUNDATION TRUST","RTH08","John Radcliffe Hospital - RTH08",1177,4759,0.71197960917587089,0.18861512319456245,619,219,101,92,130,16]
["QU9","RHW","ROYAL BERKSHIRE NHS FOUNDATION TRUST","RHW03","King Edward Vii Hospital - RHW03",170,1153,0.93529411764705883,4.7058823529411764E-2,143,16,3,4,4,0]
["QU9","RHW","ROYAL BERKSHIRE NHS FOUNDATION TRUST","RHW01","Royal Berkshire Hospital - RHW01",792,10021,0.81060606060606055,0.11994949494949494,491,151,52,31,64,3]
["QUA","RNA","THE DUDLEY GROUP NHS FOUNDATION TRUST","RNA01","Russells Hall Hospital - RNA01",1253,4758,0.68555466879489224,0.16041500399042299,647,212,78,62,139,115]
["QUA","RL4","THE ROYAL WOLVERHAMPTON NHS TRUST","RL403","New Cross Hospital - RL403",1887,11467,0.7191308956014838,0.1976682564917859,1009,348,135,125,248,22]
["QUA","RBK","WALSALL HEALTHCARE NHS TRUST","RBK02","Manor Hospital - RBK02",648,3805,0.72530864197530864,0.16975308641975309,321,149,60,36,74,8]
["QUE","RGT","CAMBRIDGE UNIVERSITY HOSPITALS NHS FOUNDATION TRUST","RGT01","Addenbrooke's Hospital - RGT01",502,3365,0.6972111553784861,0.1693227091633466,186,164,64,42,43,3]
["QUE","RGN","NORTH WEST ANGLIA NHS FOUNDATION TRUST","RGN90","Hinchingbrooke Hospital - RGN90",461,3581,0.6095444685466378,0.26681127982646419,205,76,42,47,76,15]
["QUE","RGN","NORTH WEST ANGLIA NHS FOUNDATION TRUST","RGN80","Peterborough City Hospital - RGN80",920,8700,0.54891304347826086,0.33043478260869563,330,175,73,81,223,38]
["QUE","RGN","NORTH WEST ANGLIA NHS FOUNDATION TRUST","RGN49","Stamford and Rutland Hospital - RGN49",103,103,0.91262135922330101,5.8252427184466021E-2,83,11,1,3,3,2]
["QUY","RVJ","NORTH BRISTOL NHS TRUST","RVJ01","Southmead Hospital - RVJ01",0,4867,"NA","NA",0,0,0,0,0,0]
["QUY","RA7","UNIVERSITY HOSPITALS BRISTOL AND WESTON NHS FOUNDATION TRUST","RA708","Bristol Eye Hospital - RA708",212,2039,0.92924528301886788,3.3018867924528301E-2,165,32,8,3,4,0]
["QUY","RA7","UNIVERSITY HOSPITALS BRISTOL AND WESTON NHS FOUNDATION TRUST","RA723","Bristol Royal Hospital For Children - RA723",361,3598,0.81163434903047094,0.13019390581717452,210,83,20,26,21,1]
["QUY","RA7","UNIVERSITY HOSPITALS BRISTOL AND WESTON NHS FOUNDATION TRUST","RA701","Bristol Royal Infirmary - RA701",328,4207,0.76219512195121952,0.1524390243902439,176,74,22,16,34,6]
["QUY","RA7","UNIVERSITY HOSPITALS BRISTOL AND WESTON NHS FOUNDATION TRUST","RA7C2","Weston General Hospital - RA7C2",361,3206,0.77562326869806097,0.1440443213296399,218,62,26,21,31,3]
["QVV","RBD","DORSET COUNTY HOSPITAL NHS FOUNDATION TRUST","RBD01","Dorset County Hospital - RBD01",1133,3112,0.81994704324801415,0.10238305383936452,718,211,70,46,70,18]
["QVV","R0D","UNIVERSITY HOSPITALS DORSET NHS FOUNDATION TRUST","R0D01","Poole Hospital - R0D01",644,3198,0.76086956521739135,0.15838509316770186,366,124,38,33,69,14]
["QVV","R0D","UNIVERSITY HOSPITALS DORSET NHS FOUNDATION TRUST","R0D02","Royal Bourenmouth Hospital - R0D02",761,6919,0.75952693823915896,0.14980289093298291,418,160,50,32,82,19]
["QWE","RJ6","CROYDON HEALTH SERVICES NHS TRUST","RJ611","Croydon University Hospital - RJ611",1229,5195,0.77461350691619202,0.15703824247355574,681,271,81,73,120,3]
["QWE","RJ6","CROYDON HEALTH SERVICES NHS TRUST","RJ6XXX","WiC_MIU - RJ6XXX",106,6524,0.80188679245283023,0.15094339622641509,64,21,5,3,13,0]
["QWE","RVR","EPSOM AND ST HELIER UNIVERSITY HOSPITALS NHS TRUST","RVR50","Epsom Hospital - RVR50",656,4632,0.78353658536585369,0.1326219512195122,388,126,47,37,50,8]
["QWE","RVR","EPSOM AND ST HELIER UNIVERSITY HOSPITALS NHS TRUST","RVR05","St Helier Hospital - RVR05",780,6125,0.75256410256410255,0.15256410256410258,429,158,58,59,60,16]
["QWE","RAX","KINGSTON HOSPITAL NHS FOUNDATION TRUST","RAX01","Kingston Hospital - RAX01",236,6822,0.61440677966101698,0.26271186440677968,94,51,28,28,34,1]
["QWE","RAX","KINGSTON HOSPITAL NHS FOUNDATION TRUST","RAXXXX","WiC_MIU - RAXXXX",277,2145,0.76173285198555951,0.14801444043321299,145,66,24,14,27,1]
["QWE","RJ7","ST GEORGE'S UNIVERSITY HOSPITALS NHS FOUNDATION TRUST","RJ701","St George's Hospital (Tooting) - RJ701",1319,9409,0.7088703563305534,0.18802122820318423,633,302,128,101,147,8]
["QWO","RCF","AIREDALE NHS FOUNDATION TRUST","RCF22","Airedale General Hospital - RCF22",587,3035,0.77001703577512781,0.13798977853492334,343,109,49,30,51,5]
["QWO","RAE","BRADFORD TEACHING HOSPITALS NHS FOUNDATION TRUST","RAE01","Bradford Royal Infirmary - RAE01",1110,6927,0.62792792792792795,0.27117117117117118,451,246,104,102,199,8]
["QWO","RWY","CALDERDALE AND HUDDERSFIELD NHS FOUNDATION TRUST","RWY02","Calderdale Royal Hospital - RWY02",375,6602,0.80533333333333335,0.13333333333333333,254,48,18,19,31,5]
["QWO","RWY","CALDERDALE AND HUDDERSFIELD NHS FOUNDATION TRUST","RWY01","Huddersfield Royal Infirmary - RWY01",308,5845,0.78246753246753242,0.14285714285714285,195,46,18,13,31,5]
["QWO","RR8","LEEDS TEACHING HOSPITALS NHS TRUST","RR801","Leeds General Infirmary - RR801",1896,10022,0.76740506329113922,0.16139240506329114,1119,336,107,86,220,28]
["QWO","RR8","LEEDS TEACHING HOSPITALS NHS TRUST","RR813","St James's University Hospital - RR813",767,4549,0.72229465449804431,0.18122555410691005,413,141,64,41,98,10]
["QWO","RXF","MID YORKSHIRE HOSPITALS NHS TRUST","RXF10","Dewsbury and District Hospital - RXF10",684,4198,0.81432748538011701,0.13450292397660818,424,133,35,25,67,0]
["QWO","RXF","MID YORKSHIRE HOSPITALS NHS TRUST","RXF05","Pinderfields General Hospital - RXF05",673,4447,0.57652303120356607,0.31797919762258542,273,115,70,57,157,1]
["QWO","RXF","MID YORKSHIRE HOSPITALS NHS TRUST","RXF03","Pontefract General Infirmary - RXF03",282,2924,0.86170212765957444,9.9290780141843976E-2,203,40,11,7,21,0]
["QWU","RLT","GEORGE ELIOT HOSPITAL NHS TRUST","RLT01","George Eliot Hospital - Acute Services - RLT01",1501,6250,0.77481678880746174,0.15789473684210525,822,341,81,78,159,20]
["QWU","RJC","SOUTH WARWICKSHIRE NHS FOUNDATION TRUST","RJC02","Warwick Hospital - RJC02",304,3924,0.79276315789473684,0.16447368421052633,181,60,13,24,26,0]
["QWU","RJC","SOUTH WARWICKSHIRE NHS FOUNDATION TRUST","RJCXXX","WiC_MIU - RJCXXX",0,0,"NA","NA",0,0,0,0,0,0]
["QWU","RKB","UNIVERSITY HOSPITALS COVENTRY AND WARWICKSHIRE NHS TRUST","RKB03","Hospital Of St Cross - RKB03",367,2304,0.84196185286103542,0.10899182561307902,247,62,15,13,27,3]
["QWU","RKB","UNIVERSITY HOSPITALS COVENTRY AND WARWICKSHIRE NHS TRUST","RKB01","University Hospital (Coventry) - RKB01",1129,9823,0.67847652790079716,0.23029229406554472,579,187,74,86,174,29]
["QWU","RKB","UNIVERSITY HOSPITALS COVENTRY AND WARWICKSHIRE NHS TRUST","RKBXXX","WiC_MIU - RKBXXX",0,4708,"NA","NA",0,0,0,0,0,0]
["QXU","RTK","ASHFORD AND ST PETER'S HOSPITALS NHS FOUNDATION TRUST","RTK01","St Peter's Hospital - RTK01",12,9989,0.5,8.3333333333333329E-2,5,1,2,0,1,3]
["QXU","RTP","SURREY AND SUSSEX HEALTHCARE NHS TRUST","RTP04","East Surrey Hospital - RTP04",612,6272,0.77941176470588236,0.1388888888888889,352,125,47,39,46,3]
["QYG","RBS","ALDER HEY CHILDREN'S NHS FOUNDATION TRUST","RBS25","Alder Hey Children's NHS - RBS25",233,5551,0.68669527896995708,0.23175965665236051,118,42,19,26,28,0]
["QYG","RJN","EAST CHESHIRE NHS TRUST","RJN71","Macclesfield District General Hospital - RJN71",669,2951,0.77279521674140506,0.14050822122571002,392,125,53,47,47,5]
["QYG","REM","LIVERPOOL UNIVERSITY HOSPITALS NHS FOUNDATION TRUST","REMRQ","Royal Liverpool University Hospital - REMRQ",858,5065,0.63170163170163174,0.26806526806526809,424,118,57,72,158,29]
["QYG","REM","LIVERPOOL UNIVERSITY HOSPITALS NHS FOUNDATION TRUST","REM21","University Hospital Aintree - REM21",949,5030,0.67650158061116961,0.23919915700737618,473,169,56,72,155,24]
["QYG","REP","LIVERPOOL WOMEN'S NHS FOUNDATION TRUST","REP01","Liverpool Womens Hospital - REP01",94,1194,0.82978723404255317,0.11702127659574468,61,17,5,5,6,0]
["QYG","RBT","MID CHESHIRE HOSPITALS NHS FOUNDATION TRUST","RBT20","Leighton Hospital - RBT20",1063,5350,0.7968015051740357,0.11853245531514581,659,188,75,47,79,15]
["QYG","RBT","MID CHESHIRE HOSPITALS NHS FOUNDATION TRUST","RBTXXX","WiC_MIU - RBTXXX",164,2613,0.71341463414634143,0.21951219512195122,67,50,11,18,18,0]
["QYG","RVY","SOUTHPORT AND ORMSKIRK HOSPITAL NHS TRUST","RVY02","Ormskirk and District General Hospital - RVY02",321,1918,0.87227414330218067,0.10280373831775701,249,31,8,22,11,0]
["QYG","RVY","SOUTHPORT AND ORMSKIRK HOSPITAL NHS TRUST","RVY01","Southport and Formby District General Hospital - RVY01",790,2910,0.81265822784810127,0.14430379746835442,475,167,31,57,57,3]
["QYG","RBN","ST HELENS AND KNOWSLEY TEACHING HOSPITALS NHS TRUST","RBN01","Whiston Hospital - RBN01",687,4455,0.75982532751091703,0.13537117903930132,394,128,57,38,55,15]
["QYG","RWW","WARRINGTON AND HALTON TEACHING HOSPITALS NHS FOUNDATION TRUST","RWWHG","Halton Hospital - RWWHG",566,2870,0.75795053003533563,0.15724381625441697,342,87,35,33,56,13]
["QYG","RWW","WARRINGTON AND HALTON TEACHING HOSPITALS NHS FOUNDATION TRUST","RWWWH","Warrington Hospital - RWWWH",1206,6009,0.67412935323383083,0.23466003316749584,603,210,92,98,185,18]
["QYG","RBL","WIRRAL UNIVERSITY TEACHING HOSPITAL NHS FOUNDATION TRUST","RBL14","Arrowe Park Hospital - RBL14",692,5006,0.73554913294797686,0.17341040462427745,382,127,47,42,78,16]

{"sheet":"BS","index":5,"n_rows":228,"n_cols":33,"rows_kept":228,"cut":false,"hidden":false,"merged":[]}
[null,"Sort","STP Code","STP name","Trust code","Trust name","Site Code","Site Name",null,"Sort Lists:","Sort range…","Sort range…","Sort range…","Reference Region List:","Code…","Name…","Linked Region List:","Code…","Name…","Reference Lists:","Code…","Code…","Name…","Code…","Name…","Trusts Linked Lists:","Code…","Name…","Sites Linked Lists:","Code…","Name…","Code…","Name…"]
["STP",1,1,1,"-","-","-","-",null,null,"ICB Code","ICB Code","ICB Code",null,"QE1","LANCASHIRE AND SOUTH CUMBRIA ICB",null,"QE1","LANCASHIRE AND SOUTH CUMBRIA ICB",null,"QE1","RXL","BLACKPOOL TEACHING HOSPITALS NHS FOUNDATION TRUST","RXL01","Blackpool Victoria Hospital - RXL01",null,"R0A","AIREDALE NHS FOUNDATION TRUST",null,"R0A","AIREDALE NHS FOUNDATION TRUST","E0A3H","Addenbrooke's Hospital - RGT01"]
["Trusts",1,1,1,1,1,"-","-",null,null,"ICB Name","Trust Code","Trust Code",null,"QF7","SOUTH YORKSHIRE ICB",null,"QF7","SOUTH YORKSHIRE ICB",null,"QE1","RXR","EAST LANCASHIRE HOSPITALS NHS TRUST","RXR20","Royal Blackburn Hospital - RXR20",null,"R0B","ALDER HEY CHILDREN'S NHS FOUNDATION TRUST",null,"R0B","ALDER HEY CHILDREN'S NHS FOUNDATION TRUST","G0W1C","Airedale General Hospital - RCF22"]
["Site",1,1,1,1,1,1,1,null,null,"Total Responses","Trust Name","Trust Name",null,"QGH","HEREFORDSHIRE AND WORCESTERSHIRE ICB",null,"QGH","HEREFORDSHIRE AND WORCESTERSHIRE ICB",null,"QE1","RXN","LANCASHIRE TEACHING HOSPITALS NHS FOUNDATION TRUST","RXN01","Chorley and South Ribble Hospital - RXN01",null,"R0D","ASHFORD AND ST PETER'S HOSPITALS NHS FOUNDATION TRUST",null,"R0D","ASHFORD AND ST PETER'S HOSPITALS NHS FOUNDATION TRUST","N6J7V","Alder Hey Children's NHS - RBS25"]
[null,null,null,null,null,null,null,null,null,null,"Total Eligible","Total Responses","Site Code",null,"QH8","MID AND SOUTH ESSEX ICB",null,"QH8","MID AND SOUTH ESSEX ICB",null,"QE1","RXN","LANCASHIRE TEACHING HOSPITALS NHS FOUNDATION TRUST","RXN02","Royal Preston Hospital - RXN02",null,"R1F","BARKING, HAVERING AND REDBRIDGE UNIVERSITY HOSPITALS NHS TRUST",null,"R1F","BARKING, HAVERING AND REDBRIDGE UNIVERSITY HOSPITALS NHS TRUST","R0A02","Alexandra Hospital - RWP01"]
[null,null,null,null,null,null,null,null,null,null,"Percentage Positive","Total Eligible","Site Name",null,"QHG","BEDFORDSHIRE, LUTON AND MILTON KEYNES ICB",null,"QHG","BEDFORDSHIRE, LUTON AND MILTON KEYNES ICB",null,"QE1","RTX","UNIVERSITY HOSPITALS OF MORECAMBE BAY NHS FOUNDATION TRUST","RTXBU","Furness General Hospital - RTXBU",null,"R1H","BARTS HEALTH NHS TRUST",null,"R1H","BARTS HEALTH NHS TRUST","R0A03","Andover War Memorial Hospital - RN542"]
[null,null,null,null,null,null,null,null,null,null,"Percentage Negative","Percentage Positive","Total Responses",null,"QHL","BIRMINGHAM AND SOLIHULL ICB",null,"QHL","BIRMINGHAM AND SOLIHULL ICB",null,"QE1","RTX","UNIVERSITY HOSPITALS OF MORECAMBE BAY NHS FOUNDATION TRUST","RTX02","Royal Lancaster Infirmary - RTX02",null,"R1K","BEDFORDSHIRE HOSPITALS NHS FOUNDATION TRUST",null,"R1K","BEDFORDSHIRE HOSPITALS NHS FOUNDATION TRUST","R0A04","Arrowe Park Hospital - RBL14"]
[null,null,null,null,null,null,null,null,null,null,"Very Good","Percentage Negative","Total Eligible",null,"QHM","NORTH EAST AND NORTH CUMBRIA ICB",null,"QHM","NORTH EAST AND NORTH CUMBRIA ICB",null,"QE1","RTX","UNIVERSITY HOSPITALS OF MORECAMBE BAY NHS FOUNDATION TRUST","RTXBW","Westmorland General Hospital - RTXBW",null,"RA4","BIRMINGHAM WOMEN'S AND CHILDREN'S NHS FOUNDATION TRUST",null,"RA4","BIRMINGHAM WOMEN'S AND CHILDREN'S NHS FOUNDATION TRUST","R0A07","Barnet Hospital - RAL26"]
[null,null,null,null,null,null,null,null,null,null,"Good","Very Good","Percentage Positive",null,"QJ2","DERBY AND DERBYSHIRE ICB",null,"QJ2","DERBY AND DERBYSHIRE ICB",null,"QF7","RP5","DONCASTER AND BASSETLAW TEACHING HOSPITALS NHS FOUNDATION TRUST","RP5BA","Bassetlaw Hospital - RP5BA",null,"RA7","BLACKPOOL TEACHING HOSPITALS NHS FOUNDATION TRUST",null,"RA7","BLACKPOOL TEACHING HOSPITALS NHS FOUNDATION TRUST","R0A09","Basildon Hospital - RAJ12"]
[null,null,null,null,null,null,null,null,null,null,"Neither Good nor Poor","Good","Percentage Negative",null,"QJG","SUFFOLK AND NORTH EAST ESSEX ICB",null,"QJG","SUFFOLK AND NORTH EAST ESSEX ICB",null,"QF7","RP5","DONCASTER AND BASSETLAW TEACHING HOSPITALS NHS FOUNDATION TRUST","RP5DR","Doncaster Royal Infirmary - RP5DR",null,"RA9","BOLTON NHS FOUNDATION TRUST",null,"RA9","BOLTON NHS FOUNDATION TRUST","R0A66","Basingstoke and North Hampshire Hospital - RN506"]
[null,null,null,null,null,null,null,null,null,null,"Poor","Neither Good nor Poor","Very Good",null,"QJK","DEVON ICB",null,"QJK","DEVON ICB",null,"QF7","RP5","DONCASTER AND BASSETLAW TEACHING HOSPITALS NHS FOUNDATION TRUST","RP5MM","Montagu Hospital - RP5MM",null,"RAE","BRADFORD TEACHING HOSPITALS NHS FOUNDATION TRUST",null,"RAE","BRADFORD TEACHING HOSPITALS NHS FOUNDATION TRUST","R0B01","Bassetlaw Hospital - RP5BA"]
[null,null,null,null,null,null,null,null,null,null,"Very Poor","Poor","Good",null,"QJM","LINCOLNSHIRE ICB",null,"QJM","LINCOLNSHIRE ICB",null,"QF7","RCU","SHEFFIELD CHILDREN'S NHS FOUNDATION TRUST","RCUEF","Sheffield Children's Hospital - RCUEF",null,"RAJ","BUCKINGHAMSHIRE HEALTHCARE NHS TRUST",null,"RAJ","BUCKINGHAMSHIRE HEALTHCARE NHS TRUST","R0B0Q","Bedford Hospital South Wing - RC979"]
[null,null,null,null,null,null,null,null,null,null,"Don't Know","Very Poor","Neither Good nor Poor",null,"QK1","LEICESTER, LEICESTERSHIRE AND RUTLAND ICB",null,"QK1","LEICESTER, LEICESTERSHIRE AND RUTLAND ICB",null,"QF7","RHQ","SHEFFIELD TEACHING HOSPITALS NHS FOUNDATION TRUST","RHQNG","Northern General Hospital - RHQNG",null,"RAL","CALDERDALE AND HUDDERSFIELD NHS FOUNDATION TRUST",null,"RAL","CALDERDALE AND HUDDERSFIELD NHS FOUNDATION TRUST","R0B0X","Birmingham Children's Hospital - RQ301"]
[null,null,null,null,null,null,null,null,null,null,null,"Don't Know","Poor",null,"QKK","SOUTH EAST LONDON ICB",null,"QKK","SOUTH EAST LONDON ICB",null,"QF7","RHQ","SHEFFIELD TEACHING HOSPITALS NHS FOUNDATION TRUST","RHQHH","Royal Hallamshire Hospital - RHQHH",null,"RAP","CAMBRIDGE UNIVERSITY HOSPITALS NHS FOUNDATION TRUST",null,"RAP","CAMBRIDGE UNIVERSITY HOSPITALS NHS FOUNDATION TRUST","R0D01","Birmingham Midland Eye Centre (Bmec) - RXK03"]
[null,null,null,null,null,null,null,null,null,null,null,"Mode SMS","Very Poor",null,"QKS","KENT AND MEDWAY ICB",null,"QKS","KENT AND MEDWAY ICB",null,"QF7","RHQ","SHEFFIELD TEACHING HOSPITALS NHS FOUNDATION TRUST","RHQXXX","WiC_MIU - RHQXXX",null,"RAS","CHELSEA AND WESTMINSTER HOSPITAL NHS FOUNDATION TRUST",null,"RAS","CHELSEA AND WESTMINSTER HOSPITAL NHS FOUNDATION TRUST","R0D02","Blackpool Victoria Hospital - RXL01"]
[null,null,null,null,null,null,null,null,null,null,null,"Mode Electronic Discharge","Don't Know",null,"QM7","HERTFORDSHIRE AND WEST ESSEX ICB",null,"QM7","HERTFORDSHIRE AND WEST ESSEX ICB",null,"QF7","RFR","THE ROTHERHAM NHS FOUNDATION TRUST","RFRPA","Rotherham District General Hospital - RFRPA",null,"RAX","CHESTERFIELD ROYAL HOSPITAL NHS FOUNDATION TRUST",null,"RAX","CHESTERFIELD ROYAL HOSPITAL NHS FOUNDATION TRUST","R1F01","Bradford Royal Infirmary - RAE01"]
[null,null,null,null,null,null,null,null,null,null,null,"Mode Paper Discharge",null,null,"QMF","NORTH EAST LONDON ICB",null,"QMF","NORTH EAST LONDON ICB",null,"QGH","RWP","WORCESTERSHIRE ACUTE HOSPITALS NHS TRUST","RWP01","Alexandra Hospital - RWP01",null,"RBD","COUNTY DURHAM AND DARLINGTON NHS FOUNDATION TRUST",null,"RBD","COUNTY DURHAM AND DARLINGTON NHS FOUNDATION TRUST","R1H12","Bristol Eye Hospital - RA708"]
[null,null,null,null,null,null,null,null,null,null,null,"Mode Paper Home",null,null,"QMJ","NORTH CENTRAL LONDON ICB",null,"QMJ","NORTH CENTRAL LONDON ICB",null,"QGH","RWP","WORCESTERSHIRE ACUTE HOSPITALS NHS TRUST","RWP31","Kidderminster Hospital - RWP31",null,"RBK","CROYDON HEALTH SERVICES NHS TRUST",null,"RBK","CROYDON HEALTH SERVICES NHS TRUST","R1HKH","Bristol Royal Hospital For Children - RA723"]
[null,null,null,null,null,null,null,null,null,null,null,"Mode Telephone",null,null,"QMM","NORFOLK AND WAVENEY ICB",null,"QMM","NORFOLK AND WAVENEY ICB",null,"QGH","RWP","WORCESTERSHIRE ACUTE HOSPITALS NHS TRUST","RWP50","Worcestershire Royal Hospital - RWP50",null,"RBL","DARTFORD AND GRAVESHAM NHS TRUST",null,"RBL","DARTFORD AND GRAVESHAM NHS TRUST","R1HM0","Bristol Royal Infirmary - RA701"]
[null,null,null,null,null,null,null,null,null,null,null,"Mode Online",null,null,"QNC","STAFFORDSHIRE AND STOKE-ON-TRENT ICB",null,"QNC","STAFFORDSHIRE AND STOKE-ON-TRENT ICB",null,"QGH","RLQ","WYE VALLEY NHS TRUST","RLQ01","Hereford County Hospital - RLQ01",null,"RBN","DONCASTER AND BASSETLAW TEACHING HOSPITALS NHS FOUNDATION TRUST",null,"RBN","DONCASTER AND BASSETLAW TEACHING HOSPITALS NHS FOUNDATION TRUST","R1HNH","Buckland Hospital - RVV02"]
[null,null,null,null,null,null,null,null,null,null,null,"Mode Other",null,null,"QNQ","FRIMLEY ICB",null,"QNQ","FRIMLEY ICB",null,"QH8","RAJ","MID AND SOUTH ESSEX NHS FOUNDATION TRUST","RAJ12","Basildon Hospital - RAJ12",null,"RBS","DORSET COUNTY HOSPITAL NHS FOUNDATION TRUST",null,"RBS","DORSET COUNTY HOSPITAL NHS FOUNDATION TRUST","R1HXXX","Calderdale Royal Hospital - RWY02"]
[null,null,null,null,null,null,null,null,null,null,null,null,null,null,"QNX","SUSSEX ICB",null,"QNX","SUSSEX ICB",null,"QH8","RAJ","MID AND SOUTH ESSEX NHS FOUNDATION TRUST","RAJ32","Mid Essex Hospital - RAJ32",null,"RBT","EAST AND NORTH HERTFORDSHIRE NHS TRUST",null,"RBT","EAST AND NORTH HERTFORDSHIRE NHS TRUST","R1K01","Charing Cross Hospital - RYJ02"]
[null,null,null,null,null,null,null,null,null,null,null,null,null,null,"QOC","SHROPSHIRE, TELFORD AND WREKIN ICB",null,"QOC","SHROPSHIRE, TELFORD AND WREKIN ICB",null,"QH8","RAJ","MID AND SOUTH ESSEX NHS FOUNDATION TRUST","RAJ01","Southend Hospital - RAJ01",null,"RC9","EAST CHESHIRE NHS TRUST",null,"RC9","EAST CHESHIRE NHS TRUST","R1K04","Chase Farm Hospital - RALC7"]
[null,null,null,null,null,null,null,null,null,null,null,null,null,null,"QOP","GREATER MANCHESTER ICB",null,"QOP","GREATER MANCHESTER ICB",null,"QHG","RC9","BEDFORDSHIRE HOSPITALS NHS FOUNDATION TRUST","RC979","Bedford Hospital South Wing - RC979",null,"RCB","EAST KENT HOSPITALS UNIVERSITY NHS FOUNDATION TRUST",null,"RCB","EAST KENT HOSPITALS UNIVERSITY NHS FOUNDATION TRUST","RA430","Chelsea and Westminster Hospital - RQM01"]
[null,null,null,null,null,null,null,null,null,null,null,null,null,null,"QOQ","HUMBER AND NORTH YORKSHIRE ICB",null,"QOQ","HUMBER AND NORTH YORKSHIRE ICB",null,"QHG","RC9","BEDFORDSHIRE HOSPITALS NHS FOUNDATION TRUST","RC971","Luton and Dunstable Hospital - RC971",null,"RCD","EAST LANCASHIRE HOSPITALS NHS TRUST",null,"RCD","EAST LANCASHIRE HOSPITALS NHS TRUST","RA701","Cheltenham General Hospital - RTE01"]
[null,null,null,null,null,null,null,null,null,null,null,null,null,null,"QOX","BATH AND NORTH EAST SOMERSET, SWINDON AND WILTSHIRE ICB",null,"QOX","BATH AND NORTH EAST SOMERSET, SWINDON AND WILTSHIRE ICB",null,"QHG","RD8","MILTON KEYNES UNIVERSITY HOSPITAL NHS FOUNDATION TRUST","RD816","Milton Keynes Hospital - RD816",null,"RCF","EAST SUFFOLK AND NORTH ESSEX NHS FOUNDATION TRUST",null,"RCF","EAST SUFFOLK AND NORTH ESSEX NHS FOUNDATION TRUST","RA708","Chesterfield Royal Hospital - RFSDA"]
[null,null,null,null,null,null,null,null,null,null,null,null,null,null,"QPM","NORTHAMPTONSHIRE ICB",null,"QPM","NORTHAMPTONSHIRE ICB",null,"QHL","RQ3","BIRMINGHAM WOMEN'S AND CHILDREN'S NHS FOUNDATION TRUST","RQ301","Birmingham Children's Hospital - RQ301",null,"RCU","EAST SUSSEX HEALTHCARE NHS TRUST",null,"RCU","EAST SUSSEX HEALTHCARE NHS TRUST","RA723","Chorley and South Ribble Hospital - RXN01"]
[null,null,null,null,null,null,null,null,null,null,null,null,null,null,"QR1","GLOUCESTERSHIRE ICB",null,"QR1","GLOUCESTERSHIRE ICB",null,"QHL","RXK","SANDWELL AND WEST BIRMINGHAM HOSPITALS NHS TRUST","RXK03","Birmingham Midland Eye Centre (Bmec) - RXK03",null,"RCX","EPSOM AND ST HELIER UNIVERSITY HOSPITALS NHS TRUST",null,"RCX","EPSOM AND ST HELIER UNIVERSITY HOSPITALS NHS TRUST","RA7C2","City Hospital - RXK02"]
[null,null,null,null,null,null,null,null,null,null,null,null,null,null,"QRL","HAMPSHIRE AND ISLE OF WIGHT ICB",null,"QRL","HAMPSHIRE AND ISLE OF WIGHT ICB",null,"QHL","RXK","SANDWELL AND WEST BIRMINGHAM HOSPITALS NHS TRUST","RXK02","City Hospital - RXK02",null,"RD8","FRIMLEY HEALTH NHS FOUNDATION TRUST",null,"RD8","FRIMLEY HEALTH NHS FOUNDATION TRUST","RA901","Clacton and District Hospital - RDEE2"]
[null,null,null,null,null,null,null,null,null,null,null,null,null,null,"QRV","NORTH WEST LONDON ICB",null,"QRV","NORTH WEST LONDON ICB",null,"QHL","RXK","SANDWELL AND WEST BIRMINGHAM HOSPITALS NHS TRUST","RXK01","Sandwell General Hospital - RXK01",null,"RDE","GATESHEAD HEALTH NHS FOUNDATION TRUST",null,"RDE","GATESHEAD HEALTH NHS FOUNDATION TRUST","RAE01","Colchester General Hospital - RDEE4"]
[null,null,null,null,null,null,null,null,null,null,null,null,null,null,"QSL","SOMERSET ICB",null,"QSL","SOMERSET ICB",null,"QHL","RRK","UNIVERSITY HOSPITALS BIRMINGHAM NHS FOUNDATION TRUST","RRK98","Good Hope Hospital - RRK98",null,"RDU","GEORGE ELIOT HOSPITAL NHS TRUST",null,"RDU","GEORGE ELIOT HOSPITAL NHS TRUST","RAJ01","Conquest Hospital - RXC01"]
[null,null,null,null,null,null,null,null,null,null,null,null,null,null,"QT1","NOTTINGHAM AND NOTTINGHAMSHIRE ICB",null,"QT1","NOTTINGHAM AND NOTTINGHAMSHIRE ICB",null,"QHL","RRK","UNIVERSITY HOSPITALS BIRMINGHAM NHS FOUNDATION TRUST","RRK97","Heartlands Hospital - RRK97",null,"REF","GLOUCESTERSHIRE HOSPITALS NHS FOUNDATION TRUST",null,"REF","GLOUCESTERSHIRE HOSPITALS NHS FOUNDATION TRUST","RAJ12","County Hospital - RJE09"]
[null,null,null,null,null,null,null,null,null,null,null,null,null,null,"QT6","CORNWALL AND THE ISLES OF SCILLY ICB",null,"QT6","CORNWALL AND THE ISLES OF SCILLY ICB",null,"QHL","RRK","UNIVERSITY HOSPITALS BIRMINGHAM NHS FOUNDATION TRUST","RRK15","Queen Elizabeth Hospital Birmingham - RRK15",null,"REM","GREAT WESTERN HOSPITALS NHS FOUNDATION TRUST",null,"REM","GREAT WESTERN HOSPITALS NHS FOUNDATION TRUST","RAJ32","Croydon University Hospital - RJ611"]
[null,null,null,null,null,null,null,null,null,null,null,null,null,null,"QU9","BUCKINGHAMSHIRE, OXFORDSHIRE AND BERKSHIRE WEST ICB",null,"QU9","BUCKINGHAMSHIRE, OXFORDSHIRE AND BERKSHIRE WEST ICB",null,"QHM","RXP","COUNTY DURHAM AND DARLINGTON NHS FOUNDATION TRUST","RXPCP","University Hospital Of North Durham - RXPCP",null,"REP","GUY'S AND ST THOMAS' NHS FOUNDATION TRUST",null,"REP","GUY'S AND ST THOMAS' NHS FOUNDATION TRUST","RAL01","Cumberland Infirmary - RNN62"]
[null,null,null,null,null,null,null,null,null,null,null,null,null,null,"QUA","BLACK COUNTRY ICB",null,"QUA","BLACK COUNTRY ICB",null,"QHM","RXP","COUNTY DURHAM AND DARLINGTON NHS FOUNDATION TRUST","RXPXXX","WiC_MIU - RXPXXX",null,"RF4","HAMPSHIRE HOSPITALS NHS FOUNDATION TRUST",null,"RF4","HAMPSHIRE HOSPITALS NHS FOUNDATION TRUST","RAL26","Darent Valley Hospital - RN707"]
[null,null,null,null,null,null,null,null,null,null,null,null,null,null,"QUE","CAMBRIDGESHIRE AND PETERBOROUGH ICB",null,"QUE","CAMBRIDGESHIRE AND PETERBOROUGH ICB",null,"QHM","RR7","GATESHEAD HEALTH NHS FOUNDATION TRUST","RR7EN","Queen Elizabeth Hospital - RR7EN",null,"RFR","HARROGATE AND DISTRICT NHS FOUNDATION TRUST",null,"RFR","HARROGATE AND DISTRICT NHS FOUNDATION TRUST","RALC7","Derriford Hospital - RK950"]
[null,null,null,null,null,null,null,null,null,null,null,null,null,null,"QUY","BRISTOL, NORTH SOMERSET AND SOUTH GLOUCESTERSHIRE ICB",null,"QUY","BRISTOL, NORTH SOMERSET AND SOUTH GLOUCESTERSHIRE ICB",null,"QHM","RR7","GATESHEAD HEALTH NHS FOUNDATION TRUST","RR7XXX","WiC_MIU - RR7XXX",null,"RFS","HOMERTON HEALTHCARE NHS FOUNDATION TRUST",null,"RFS","HOMERTON HEALTHCARE NHS FOUNDATION TRUST","RAPNM","Dewsbury and District Hospital - RXF10"]
[null,null,null,null,null,null,null,null,null,null,null,null,null,null,"QVV","DORSET ICB",null,"QVV","DORSET ICB",null,"QHM","RNN","NORTH CUMBRIA INTEGRATED CARE NHS FOUNDATION TRUST","RNN62","Cumberland Infirmary - RNN62",null,"RGN","HULL UNIVERSITY TEACHING HOSPITALS NHS TRUST",null,"RGN","HULL UNIVERSITY TEACHING HOSPITALS NHS TRUST","RAS01","Diana, Princess Of Wales Hospital - RJL30"]
[null,null,null,null,null,null,null,null,null,null,null,null,null,null,"QWE","SOUTH WEST LONDON ICB",null,"QWE","SOUTH WEST LONDON ICB",null,"QHM","RNN","NORTH CUMBRIA INTEGRATED CARE NHS FOUNDATION TRUST","RNNBX","West Cumberland Hospital - RNNBX",null,"RGP","IMPERIAL COLLEGE HEALTHCARE NHS TRUST",null,"RGP","IMPERIAL COLLEGE HEALTHCARE NHS TRUST","RAS02","Doncaster Royal Infirmary - RP5DR"]
[null,null,null,null,null,null,null,null,null,null,null,null,null,null,"QWO","WEST YORKSHIRE ICB",null,"QWO","WEST YORKSHIRE ICB",null,"QHM","RVW","NORTH TEES AND HARTLEPOOL NHS FOUNDATION TRUST","RVWAE","University Hospital Of North Tees - RVWAE",null,"RGR","ISLE OF WIGHT NHS TRUST",null,"RGR","ISLE OF WIGHT NHS TRUST","RAX01","Dorset County Hospital - RBD01"]
[null,null,null,null,null,null,null,null,null,null,null,null,null,null,"QWU","COVENTRY AND WARWICKSHIRE ICB",null,"QWU","COVENTRY AND WARWICKSHIRE ICB",null,"QHM","RTF","NORTHUMBRIA HEALTHCARE NHS FOUNDATION TRUST","RTF86","The Northumbria - RTF86",null,"RGT","JAMES PAGET UNIVERSITY HOSPITALS NHS FOUNDATION TRUST",null,"RGT","JAMES PAGET UNIVERSITY HOSPITALS NHS FOUNDATION TRUST","RAXXXX","Ealing Hospital - R1K04"]
[null,null,null,null,null,null,null,null,null,null,null,null,null,null,"QXU","SURREY HEARTLANDS ICB",null,"QXU","SURREY HEARTLANDS ICB",null,"QHM","RTF","NORTHUMBRIA HEALTHCARE NHS FOUNDATION TRUST","RTFXXX","WiC_MIU - RTFXXX",null,"RH5","KETTERING GENERAL HOSPITAL NHS FOUNDATION TRUST",null,"RH5","KETTERING GENERAL HOSPITAL NHS FOUNDATION TRUST","RBD01","East Surrey Hospital - RTP04"]
[null,null,null,null,null,null,null,null,null,null,null,null,null,null,"QYG","CHESHIRE AND MERSEYSIDE ICB",null,"QYG","CHESHIRE AND MERSEYSIDE ICB",null,"QHM","RTR","SOUTH TEES HOSPITALS NHS FOUNDATION TRUST","RTR45","Friarage Hospital Site - RTR45",null,"RH8","KING'S COLLEGE HOSPITAL NHS FOUNDATION TRUST",null,"RH8","KING'S COLLEGE HOSPITAL NHS FOUNDATION TRUST","RBK02","Eastbourne District General Hospital - RXC02"]
[null,null,null,null,null,null,null,null,null,null,null,null,null,null,null,null,null,null,null,null,"QHM","RTR","SOUTH TEES HOSPITALS NHS FOUNDATION TRUST","RTRAT","The James Cook University Hospital - RTRAT",null,"RHM","KINGSTON HOSPITAL NHS FOUNDATION TRUST",null,"RHM","KINGSTON HOSPITAL NHS FOUNDATION TRUST","RBL14","Epsom Hospital - RVR50"]
[null,null,null,null,null,null,null,null,null,null,null,null,null,null,null,null,null,null,null,null,"QHM","RTR","SOUTH TEES HOSPITALS NHS FOUNDATION TRUST","RTRXXX","WiC_MIU - RTRXXX",null,"RHQ","LANCASHIRE TEACHING HOSPITALS NHS FOUNDATION TRUST",null,"RHQ","LANCASHIRE TEACHING HOSPITALS NHS FOUNDATION TRUST","RBN01","Friarage Hospital Site - RTR45"]
[null,null,null,null,null,null,null,null,null,null,null,null,null,null,null,null,null,null,null,null,"QHM","R0B","SOUTH TYNESIDE AND SUNDERLAND NHS FOUNDATION TRUST","R0B0Q","South Tyneside District Hospital - R0B0Q",null,"RHU","LEEDS TEACHING HOSPITALS NHS TRUST",null,"RHU","LEEDS TEACHING HOSPITALS NHS TRUST","RBS25","Furness General Hospital - RTXBU"]
[null,null,null,null,null,null,null,null,null,null,null,null,null,null,null,null,null,null,null,null,"QHM","R0B","SOUTH TYNESIDE AND SUNDERLAND NHS FOUNDATION TRUST","R0B0X","Sunderland Eye Infirmary – R0B0X",null,"RHW","LEWISHAM AND GREENWICH NHS TRUST",null,"RHW","LEWISHAM AND GREENWICH NHS TRUST","RBT20","George Eliot Hospital - Acute Services - RLT01"]
[null,null,null,null,null,null,null,null,null,null,null,null,null,null,null,null,null,null,null,null,"QHM","R0B","SOUTH TYNESIDE AND SUNDERLAND NHS FOUNDATION TRUST","R0B01","Sunderland Royal Hospital – R0B01",null,"RJ1","LIVERPOOL UNIVERSITY HOSPITALS NHS FOUNDATION TRUST",null,"RJ1","LIVERPOOL UNIVERSITY HOSPITALS NHS FOUNDATION TRUST","RBTXXX","Gloucestershire Royal Hospital - RTE03"]
[null,null,null,null,null,null,null,null,null,null,null,null,null,null,null,null,null,null,null,null,"QHM","RTD","THE NEWCASTLE UPON TYNE HOSPITALS NHS FOUNDATION TRUST","RTD02","The Royal Victoria Infirmary - RTD02",null,"RJ2","LIVERPOOL WOMEN'S NHS FOUNDATION TRUST",null,"RJ2","LIVERPOOL WOMEN'S NHS FOUNDATION TRUST","RC971","Good Hope Hospital - RRK98"]
[null,null,null,null,null,null,null,null,null,null,null,null,null,null,null,null,null,null,null,null,"QJ2","RFS","CHESTERFIELD ROYAL HOSPITAL NHS FOUNDATION TRUST","RFSDA","Chesterfield Royal Hospital - RFSDA",null,"RJ6","LONDON NORTH WEST UNIVERSITY HEALTHCARE NHS TRUST",null,"RJ6","LONDON NORTH WEST UNIVERSITY HEALTHCARE NHS TRUST","RC979","Grantham and District Hospital - RWDLP"]
[null,null,null,null,null,null,null,null,null,null,null,null,null,null,null,null,null,null,null,null,"QJ2","RTG","UNIVERSITY HOSPITALS OF DERBY AND BURTON NHS FOUNDATION TRUST","RTG02","Queen's Hospital, Burton Upon Trent - RTG02",null,"RJ7","MAIDSTONE AND TUNBRIDGE WELLS NHS TRUST",null,"RJ7","MAIDSTONE AND TUNBRIDGE WELLS NHS TRUST","RCB55","Halton Hospital - RWWHG"]
[null,null,null,null,null,null,null,null,null,null,null,null,null,null,null,null,null,null,null,null,"QJ2","RTG","UNIVERSITY HOSPITALS OF DERBY AND BURTON NHS FOUNDATION TRUST","RTGFG","Royal Derby Hospital - RTGFG",null,"RJC","MANCHESTER UNIVERSITY NHS FOUNDATION TRUST",null,"RJC","MANCHESTER UNIVERSITY NHS FOUNDATION TRUST","RCBCA","Harrogate District Hospital - RCD01"]
[null,null,null,null,null,null,null,null,null,null,null,null,null,null,null,null,null,null,null,null,"QJ2","RTG","UNIVERSITY HOSPITALS OF DERBY AND BURTON NHS FOUNDATION TRUST","RTG54","Samuel Johnson - RTG54",null,"RJE","MEDWAY NHS FOUNDATION TRUST",null,"RJE","MEDWAY NHS FOUNDATION TRUST","RCD01","Heartlands Hospital - RRK97"]
[null,null,null,null,null,null,null,null,null,null,null,null,null,null,null,null,null,null,null,null,"QJ2","RTG","UNIVERSITY HOSPITALS OF DERBY AND BURTON NHS FOUNDATION TRUST","RTG50","Sir Robert Peel - RTG50",null,"RJL","MID AND SOUTH ESSEX NHS FOUNDATION TRUST",null,"RJL","MID AND SOUTH ESSEX NHS FOUNDATION TRUST","RCD02","Hemel Hempstead Hospital - RWG08"]
[null,null,null,null,null,null,null,null,null,null,null,null,null,null,null,null,null,null,null,null,"QJG","RDE","EAST SUFFOLK AND NORTH ESSEX NHS FOUNDATION TRUST","RDEE2","Clacton and District Hospital - RDEE2",null,"RJN","MID CHESHIRE HOSPITALS NHS FOUNDATION TRUST",null,"RJN","MID CHESHIRE HOSPITALS NHS FOUNDATION TRUST","RCDXXX","Hereford County Hospital - RLQ01"]
[null,null,null,null,null,null,null,null,null,null,null,null,null,null,null,null,null,null,null,null,"QJG","RDE","EAST SUFFOLK AND NORTH ESSEX NHS FOUNDATION TRUST","RDEE4","Colchester General Hospital - RDEE4",null,"RJZ","MID YORKSHIRE HOSPITALS NHS TRUST",null,"RJZ","MID YORKSHIRE HOSPITALS NHS TRUST","RCF22","Hillingdon Hospital - RAS01"]
[null,null,null,null,null,null,null,null,null,null,null,null,null,null,null,null,null,null,null,null,"QJG","RDE","EAST SUFFOLK AND NORTH ESSEX NHS FOUNDATION TRUST","RDE03","Ipswich Hospital - RDE03",null,"RK5","MILTON KEYNES UNIVERSITY HOSPITAL NHS FOUNDATION TRUST",null,"RK5","MILTON KEYNES UNIVERSITY HOSPITAL NHS FOUNDATION TRUST","RCUEF","Hinchingbrooke Hospital - RGN90"]
[null,null,null,null,null,null,null,null,null,null,null,null,null,null,null,null,null,null,null,null,"QJG","RDE","EAST SUFFOLK AND NORTH ESSEX NHS FOUNDATION TRUST","RDEEE","The Fryatt Hospital and Mayflower Medical Centre - RDEEE",null,"RK9","MOORFIELDS EYE HOSPITAL NHS FOUNDATION TRUST",null,"RK9","MOORFIELDS EYE HOSPITAL NHS FOUNDATION TRUST","RCX70","Homerton University Hospital - RQXM1"]
[null,null,null,null,null,null,null,null,null,null,null,null,null,null,null,null,null,null,null,null,"QJG","RDE","EAST SUFFOLK AND NORTH ESSEX NHS FOUNDATION TRUST","RDE81","UTC-Colechester - RDE81",null,"RKB","NORFOLK AND NORWICH UNIVERSITY HOSPITALS NHS FOUNDATION TRUST",null,"RKB","NORFOLK AND NORWICH UNIVERSITY HOSPITALS NHS FOUNDATION TRUST","RD816","Horton General Hospital - RTH05"]
[null,null,null,null,null,null,null,null,null,null,null,null,null,null,null,null,null,null,null,null,"QJG","RGR","WEST SUFFOLK NHS FOUNDATION TRUST","RGR50","West Suffolk Hospital - RGR50",null,"RL4","NORTH BRISTOL NHS TRUST",null,"RL4","NORTH BRISTOL NHS TRUST","RDE03","Hospital Of St Cross - RKB03"]
[null,null,null,null,null,null,null,null,null,null,null,null,null,null,null,null,null,null,null,null,"QJK","RH8","ROYAL DEVON UNIVERSITY HEALTHCARE NHS FOUNDATION TRUST","RH880","North Devon District Hospital - RH880",null,"RLQ","NORTH CUMBRIA INTEGRATED CARE NHS FOUNDATION TRUST",null,"RLQ","NORTH CUMBRIA INTEGRATED CARE NHS FOUNDATION TRUST","RDE81","Huddersfield Royal Infirmary - RWY01"]
[null,null,null,null,null,null,null,null,null,null,null,null,null,null,null,null,null,null,null,null,"QJK","RH8","ROYAL DEVON UNIVERSITY HEALTHCARE NHS FOUNDATION TRUST","RH801","Royal Devon and Exeter Hospital (Wonford) - RH801",null,"RLT","NORTH MIDDLESEX UNIVERSITY HOSPITAL NHS TRUST",null,"RLT","NORTH MIDDLESEX UNIVERSITY HOSPITAL NHS TRUST","RDEE2","Hull Royal Infirmary - RWA01"]
[null,null,null,null,null,null,null,null,null,null,null,null,null,null,null,null,null,null,null,null,"QJK","RH8","ROYAL DEVON UNIVERSITY HEALTHCARE NHS FOUNDATION TRUST","RH8XXX","WiC_MIU - RH8XXX",null,"RM1","NORTH TEES AND HARTLEPOOL NHS FOUNDATION TRUST",null,"RM1","NORTH TEES AND HARTLEPOOL NHS FOUNDATION TRUST","RDEE4","Ipswich Hospital - RDE03"]
[null,null,null,null,null,null,null,null,null,null,null,null,null,null,null,null,null,null,null,null,"QJK","RA9","TORBAY AND SOUTH DEVON NHS FOUNDATION TRUST","RA901","Torbay Hospital - RA901",null,"RMC","NORTH WEST ANGLIA NHS FOUNDATION TRUST",null,"RMC","NORTH WEST ANGLIA NHS FOUNDATION TRUST","RDEEE","James Paget University Hospital - RGP75"]
[null,null,null,null,null,null,null,null,null,null,null,null,null,null,null,null,null,null,null,null,"QJK","RK9","UNIVERSITY HOSPITALS PLYMOUTH NHS TRUST","RK950","Derriford Hospital - RK950",null,"RMP","NORTHAMPTON GENERAL HOSPITAL NHS TRUST",null,"RMP","NORTHAMPTON GENERAL HOSPITAL NHS TRUST","RDU50","John Radcliffe Hospital - RTH08"]
[null,null,null,null,null,null,null,null,null,null,null,null,null,null,null,null,null,null,null,null,"QJK","RK9","UNIVERSITY HOSPITALS PLYMOUTH NHS TRUST","RK9XXX","WiC_MIU - RK9XXX",null,"RN3","NORTHERN LINCOLNSHIRE AND GOOLE NHS FOUNDATION TRUST",null,"RN3","NORTHERN LINCOLNSHIRE AND GOOLE NHS FOUNDATION TRUST","REF01","Kent and Canterbury Hospital - RVVKC"]
[null,null,null,null,null,null,null,null,null,null,null,null,null,null,null,null,null,null,null,null,"QJM","RWD","UNITED LINCOLNSHIRE HOSPITALS NHS TRUST","RWDLP","Grantham and District Hospital - RWDLP",null,"RN5","NORTHUMBRIA HEALTHCARE NHS FOUNDATION TRUST",null,"RN5","NORTHUMBRIA HEALTHCARE NHS FOUNDATION TRUST","REF12","Kettering General Hospital - RNQ51"]
[null,null,null,null,null,null,null,null,null,null,null,null,null,null,null,null,null,null,null,null,"QJM","RWD","UNITED LINCOLNSHIRE HOSPITALS NHS TRUST","RWDDA","Lincoln County Hospital - RWDDA",null,"RN7","NOTTINGHAM UNIVERSITY HOSPITALS NHS TRUST",null,"RN7","NOTTINGHAM UNIVERSITY HOSPITALS NHS TRUST","REM21","Kidderminster Hospital - RWP31"]
[null,null,null,null,null,null,null,null,null,null,null,null,null,null,null,null,null,null,null,null,"QJM","RWD","UNITED LINCOLNSHIRE HOSPITALS NHS TRUST","RWDLA","Pilgrim Hospital - RWDLA",null,"RNA","OXFORD UNIVERSITY HOSPITALS NHS FOUNDATION TRUST",null,"RNA","OXFORD UNIVERSITY HOSPITALS NHS FOUNDATION TRUST","REMRQ","King Edward Vii Hospital - RHW03"]
[null,null,null,null,null,null,null,null,null,null,null,null,null,null,null,null,null,null,null,null,"QK1","RWE","UNIVERSITY HOSPITALS OF LEICESTER NHS TRUST","RWEAA","Leicester Royal Infirmary - RWEAA",null,"RNN","PORTSMOUTH HOSPITALS UNIVERSITY NATIONAL HEALTH SERVICE TRUST",null,"RNN","PORTSMOUTH HOSPITALS UNIVERSITY NATIONAL HEALTH SERVICE TRUST","REP01","King George Hospital - RF4DG"]
[null,null,null,null,null,null,null,null,null,null,null,null,null,null,null,null,null,null,null,null,"QKK","RJ1","GUY'S AND ST THOMAS' NHS FOUNDATION TRUST","RJ122","St Thomas' Hospital - RJ122",null,"RNQ","QUEEN VICTORIA HOSPITAL NHS FOUNDATION TRUST",null,"RNQ","QUEEN VICTORIA HOSPITAL NHS FOUNDATION TRUST","RF4DG","King's College Hospital (Denmark Hill) - RJZ01"]
[null,null,null,null,null,null,null,null,null,null,null,null,null,null,null,null,null,null,null,null,"QKK","RJ1","GUY'S AND ST THOMAS' NHS FOUNDATION TRUST","RJ1XXX","WiC_MIU - RJ1XXX",null,"RNS","ROYAL BERKSHIRE NHS FOUNDATION TRUST",null,"RNS","ROYAL BERKSHIRE NHS FOUNDATION TRUST","RF4QH","King's Mill Hospital - RK5BC"]
[null,null,null,null,null,null,null,null,null,null,null,null,null,null,null,null,null,null,null,null,"QKK","RJZ","KING'S COLLEGE HOSPITAL NHS FOUNDATION TRUST","RJZ01","King's College Hospital (Denmark Hill) - RJZ01",null,"RNZ","ROYAL CORNWALL HOSPITALS NHS TRUST",null,"RNZ","ROYAL CORNWALL HOSPITALS NHS TRUST","RFRPA","Kingston Hospital - RAX01"]
[null,null,null,null,null,null,null,null,null,null,null,null,null,null,null,null,null,null,null,null,"QKK","RJZ","KING'S COLLEGE HOSPITAL NHS FOUNDATION TRUST","RJZ30","Princess Royal University Hospital - RJZ30",null,"RP5","ROYAL DEVON UNIVERSITY HEALTHCARE NHS FOUNDATION TRUST",null,"RP5","ROYAL DEVON UNIVERSITY HEALTHCARE NHS FOUNDATION TRUST","RFSDA","Leeds General Infirmary - RR801"]
[null,null,null,null,null,null,null,null,null,null,null,null,null,null,null,null,null,null,null,null,"QKK","RJ2","LEWISHAM AND GREENWICH NHS TRUST","RJ231","Queen Elizabeth Hospital - RJ231",null,"RP6","ROYAL FREE LONDON NHS FOUNDATION TRUST",null,"RP6","ROYAL FREE LONDON NHS FOUNDATION TRUST","RGN49","Leicester Royal Infirmary - RWEAA"]
[null,null,null,null,null,null,null,null,null,null,null,null,null,null,null,null,null,null,null,null,"QKK","RJ2","LEWISHAM AND GREENWICH NHS TRUST","RJ224","University Hospital Lewisham - RJ224",null,"RPA","SALISBURY NHS FOUNDATION TRUST",null,"RPA","SALISBURY NHS FOUNDATION TRUST","RGN80","Leighton Hospital - RBT20"]
[null,null,null,null,null,null,null,null,null,null,null,null,null,null,null,null,null,null,null,null,"QKS","RN7","DARTFORD AND GRAVESHAM NHS TRUST","RN707","Darent Valley Hospital - RN707",null,"RPC","SANDWELL AND WEST BIRMINGHAM HOSPITALS NHS TRUST",null,"RPC","SANDWELL AND WEST BIRMINGHAM HOSPITALS NHS TRUST","RGN90","Lincoln County Hospital - RWDDA"]
[null,null,null,null,null,null,null,null,null,null,null,null,null,null,null,null,null,null,null,null,"QKS","RVV","EAST KENT HOSPITALS UNIVERSITY NHS FOUNDATION TRUST","RVV02","Buckland Hospital - RVV02",null,"RQ3","SHEFFIELD CHILDREN'S NHS FOUNDATION TRUST",null,"RQ3","SHEFFIELD CHILDREN'S NHS FOUNDATION TRUST","RGP75","Lister Hospital - RWH01"]
[null,null,null,null,null,null,null,null,null,null,null,null,null,null,null,null,null,null,null,null,"QKS","RVV","EAST KENT HOSPITALS UNIVERSITY NHS FOUNDATION TRUST","RVVKC","Kent and Canterbury Hospital - RVVKC",null,"RQM","SHEFFIELD TEACHING HOSPITALS NHS FOUNDATION TRUST",null,"RQM","SHEFFIELD TEACHING HOSPITALS NHS FOUNDATION TRUST","RGR50","Liverpool Womens Hospital - REP01"]
[null,null,null,null,null,null,null,null,null,null,null,null,null,null,null,null,null,null,null,null,"QKS","RVV","EAST KENT HOSPITALS UNIVERSITY NHS FOUNDATION TRUST","RVV09","Queen Elizabeth The Queen Mother Hospital - RVV09",null,"RQW","SHERWOOD FOREST HOSPITALS NHS FOUNDATION TRUST",null,"RQW","SHERWOOD FOREST HOSPITALS NHS FOUNDATION TRUST","RGT01","Luton and Dunstable Hospital - RC971"]
[null,null,null,null,null,null,null,null,null,null,null,null,null,null,null,null,null,null,null,null,"QKS","RVV","EAST KENT HOSPITALS UNIVERSITY NHS FOUNDATION TRUST","RVV01","William Harvey Hospital (Ashford) - RVV01",null,"RQX","SOMERSET NHS FOUNDATION TRUST",null,"RQX","SOMERSET NHS FOUNDATION TRUST","RH5A8","Macclesfield District General Hospital - RJN71"]
[null,null,null,null,null,null,null,null,null,null,null,null,null,null,null,null,null,null,null,null,"QKS","RWF","MAIDSTONE AND TUNBRIDGE WELLS NHS TRUST","RWF03","Maidstone District General Hospital - RWF03",null,"RR7","SOUTH TEES HOSPITALS NHS FOUNDATION TRUST",null,"RR7","SOUTH TEES HOSPITALS NHS FOUNDATION TRUST","RH5XXX","Maidstone District General Hospital - RWF03"]
[null,null,null,null,null,null,null,null,null,null,null,null,null,null,null,null,null,null,null,null,"QKS","RWF","MAIDSTONE AND TUNBRIDGE WELLS NHS TRUST","RWFTW","The Tunbridge Wells Hospital - RWFTW",null,"RR8","SOUTH TYNESIDE AND SUNDERLAND NHS FOUNDATION TRUST",null,"RR8","SOUTH TYNESIDE AND SUNDERLAND NHS FOUNDATION TRUST","RH801","Manchester Royal Eye Hospital - R0A04"]
[null,null,null,null,null,null,null,null,null,null,null,null,null,null,null,null,null,null,null,null,"QKS","RWF","MAIDSTONE AND TUNBRIDGE WELLS NHS TRUST","RWFXXX","WiC_MIU - RWFXXX",null,"RRF","SOUTH WARWICKSHIRE NHS FOUNDATION TRUST",null,"RRF","SOUTH WARWICKSHIRE NHS FOUNDATION TRUST","RH880","Manchester Royal Infirmary - R0A02"]
[null,null,null,null,null,null,null,null,null,null,null,null,null,null,null,null,null,null,null,null,"QKS","RPA","MEDWAY NHS FOUNDATION TRUST","RPA02","Medway Maritime Hospital - RPA02",null,"RRK","SOUTHPORT AND ORMSKIRK HOSPITAL NHS TRUST",null,"RRK","SOUTHPORT AND ORMSKIRK HOSPITAL NHS TRUST","RH8XXX","Manor Hospital - RBK02"]
[null,null,null,null,null,null,null,null,null,null,null,null,null,null,null,null,null,null,null,null,"QM7","RWH","EAST AND NORTH HERTFORDSHIRE NHS TRUST","RWH01","Lister Hospital - RWH01",null,"RRV","ST GEORGE'S UNIVERSITY HOSPITALS NHS FOUNDATION TRUST",null,"RRV","ST GEORGE'S UNIVERSITY HOSPITALS NHS FOUNDATION TRUST","RHM01","Medway Maritime Hospital - RPA02"]
[null,null,null,null,null,null,null,null,null,null,null,null,null,null,null,null,null,null,null,null,"QM7","RWH","EAST AND NORTH HERTFORDSHIRE NHS TRUST","RWH20","Queen Elizabeth I I Hospital - RWH20",null,"RTD","ST HELENS AND KNOWSLEY TEACHING HOSPITALS NHS TRUST",null,"RTD","ST HELENS AND KNOWSLEY TEACHING HOSPITALS NHS TRUST","RHQHH","Mid Essex Hospital - RAJ32"]
[null,null,null,null,null,null,null,null,null,null,null,null,null,null,null,null,null,null,null,null,"QM7","RQW","THE PRINCESS ALEXANDRA HOSPITAL NHS TRUST","RQWG0","Princess Alexandra Hospital - RQWG0",null,"RTE","STOCKPORT NHS FOUNDATION TRUST",null,"RTE","STOCKPORT NHS FOUNDATION TRUST","RHQNG","Milton Keynes Hospital - RD816"]
[null,null,null,null,null,null,null,null,null,null,null,null,null,null,null,null,null,null,null,null,"QM7","RWG","WEST HERTFORDSHIRE TEACHING HOSPITALS NHS TRUST","RWG08","Hemel Hempstead Hospital - RWG08",null,"RTF","SURREY AND SUSSEX HEALTHCARE NHS TRUST",null,"RTF","SURREY AND SUSSEX HEALTHCARE NHS TRUST","RHQXXX","Montagu Hospital - RP5MM"]
[null,null,null,null,null,null,null,null,null,null,null,null,null,null,null,null,null,null,null,null,"QM7","RWG","WEST HERTFORDSHIRE TEACHING HOSPITALS NHS TRUST","RWG02","Watford General Hospital - RWG02",null,"RTG","TAMESIDE AND GLOSSOP INTEGRATED CARE NHS FOUNDATION TRUST",null,"RTG","TAMESIDE AND GLOSSOP INTEGRATED CARE NHS FOUNDATION TRUST","RHU03","Moorfields Eye Hospital (City Road) - RP601"]
[null,null,null,null,null,null,null,null,null,null,null,null,null,null,null,null,null,null,null,null,"QMF","RF4","BARKING, HAVERING AND REDBRIDGE UNIVERSITY HOSPITALS NHS TRUST","RF4DG","King George Hospital - RF4DG",null,"RTH","THE DUDLEY GROUP NHS FOUNDATION TRUST",null,"RTH","THE DUDLEY GROUP NHS FOUNDATION TRUST","RHUXXX","Mount Vernon Hospital Site - RAS02"]
[null,null,null,null,null,null,null,null,null,null,null,null,null,null,null,null,null,null,null,null,"QMF","RF4","BARKING, HAVERING AND REDBRIDGE UNIVERSITY HOSPITALS NHS TRUST","RF4QH","Queen's Hospital - RF4QH",null,"RTK","THE HILLINGDON HOSPITALS NHS FOUNDATION TRUST",null,"RTK","THE HILLINGDON HOSPITALS NHS FOUNDATION TRUST","RHW01","Musgrove Park Hospital - RH5A8"]
[null,null,null,null,null,null,null,null,null,null,null,null,null,null,null,null,null,null,null,null,"QMF","R1H","BARTS HEALTH NHS TRUST","R1HNH","Newham General Hospital - R1HNH",null,"RTP","THE NEWCASTLE UPON TYNE HOSPITALS NHS FOUNDATION TRUST",null,"RTP","THE NEWCASTLE UPON TYNE HOSPITALS NHS FOUNDATION TRUST","RHW03","New Cross Hospital - RL403"]
[null,null,null,null,null,null,null,null,null,null,null,null,null,null,null,null,null,null,null,null,"QMF","R1H","BARTS HEALTH NHS TRUST","R1HM0","St Bartholomew's Hospital - R1HM0",null,"RTR","THE PRINCESS ALEXANDRA HOSPITAL NHS TRUST",null,"RTR","THE PRINCESS ALEXANDRA HOSPITAL NHS TRUST","RJ122","Newham General Hospital - R1HNH"]
[null,null,null,null,null,null,null,null,null,null,null,null,null,null,null,null,null,null,null,null,"QMF","R1H","BARTS HEALTH NHS TRUST","R1H12","The Royal London Hospital - R1H12",null,"RTX","THE QUEEN ELIZABETH HOSPITAL, KING'S LYNN, NHS FOUNDATION TRUST",null,"RTX","THE QUEEN ELIZABETH HOSPITAL, KING'S LYNN, NHS FOUNDATION TRUST","RJ1XXX","Norfolk and Norwich University Hospital - RM102"]
[null,null,null,null,null,null,null,null,null,null,null,null,null,null,null,null,null,null,null,null,"QMF","R1H","BARTS HEALTH NHS TRUST","R1HKH","Whipps Cross University Hospital - R1HKH",null,"RVJ","THE ROTHERHAM NHS FOUNDATION TRUST",null,"RVJ","THE ROTHERHAM NHS FOUNDATION TRUST","RJ224","North Devon District Hospital - RH880"]
[null,null,null,null,null,null,null,null,null,null,null,null,null,null,null,null,null,null,null,null,"QMF","R1H","BARTS HEALTH NHS TRUST","R1HXXX","WiC_MIU - R1HXXX",null,"RVR","THE ROYAL WOLVERHAMPTON NHS TRUST",null,"RVR","THE ROYAL WOLVERHAMPTON NHS TRUST","RJ231","North Manchester General Hospital -R0A66"]
[null,null,null,null,null,null,null,null,null,null,null,null,null,null,null,null,null,null,null,null,"QMF","RQX","HOMERTON HEALTHCARE NHS FOUNDATION TRUST","RQXM1","Homerton University Hospital - RQXM1",null,"RVV","THE SHREWSBURY AND TELFORD HOSPITAL NHS TRUST",null,"RVV","THE SHREWSBURY AND TELFORD HOSPITAL NHS TRUST","RJ611","North Middlesex Hospital - RAPNM"]
[null,null,null,null,null,null,null,null,null,null,null,null,null,null,null,null,null,null,null,null,"QMJ","RP6","MOORFIELDS EYE HOSPITAL NHS FOUNDATION TRUST","RP601","Moorfields Eye Hospital (City Road) - RP601",null,"RVW","TORBAY AND SOUTH DEVON NHS FOUNDATION TRUST",null,"RVW","TORBAY AND SOUTH DEVON NHS FOUNDATION TRUST","RJ6XXX","Northampton General Hospital (Acute) - RNS01"]
[null,null,null,null,null,null,null,null,null,null,null,null,null,null,null,null,null,null,null,null,"QMJ","RAP","NORTH MIDDLESEX UNIVERSITY HOSPITAL NHS TRUST","RAPNM","North Middlesex Hospital - RAPNM",null,"RVY","UNITED LINCOLNSHIRE HOSPITALS NHS TRUST",null,"RVY","UNITED LINCOLNSHIRE HOSPITALS NHS TRUST","RJ701","Northern General Hospital - RHQNG"]
[null,null,null,null,null,null,null,null,null,null,null,null,null,null,null,null,null,null,null,null,"QMJ","RAL","ROYAL FREE LONDON NHS FOUNDATION TRUST","RAL26","Barnet Hospital - RAL26",null,"RWA","UNIVERSITY COLLEGE LONDON HOSPITALS NHS FOUNDATION TRUST",null,"RWA","UNIVERSITY COLLEGE LONDON HOSPITALS NHS FOUNDATION TRUST","RJC02","Northwick Park Hospital - R1K01"]
[null,null,null,null,null,null,null,null,null,null,null,null,null,null,null,null,null,null,null,null,"QMJ","RAL","ROYAL FREE LONDON NHS FOUNDATION TRUST","RALC7","Chase Farm Hospital - RALC7",null,"RWD","UNIVERSITY HOSPITAL SOUTHAMPTON NHS FOUNDATION TRUST",null,"RWD","UNIVERSITY HOSPITAL SOUTHAMPTON NHS FOUNDATION TRUST","RJCXXX","Nottingham University Hospitals NHS Trust - Queen's Medical Centre Campus - RX1RA"]
[null,null,null,null,null,null,null,null,null,null,null,null,null,null,null,null,null,null,null,null,"QMJ","RAL","ROYAL FREE LONDON NHS FOUNDATION TRUST","RAL01","Royal Free Hospital - RAL01",null,"RWE","UNIVERSITY HOSPITALS BIRMINGHAM NHS FOUNDATION TRUST",null,"RWE","UNIVERSITY HOSPITALS BIRMINGHAM NHS FOUNDATION TRUST","RJE01","Ormskirk and District General Hospital - RVY02"]
[null,null,null,null,null,null,null,null,null,null,null,null,null,null,null,null,null,null,null,null,"QMJ","RRV","UNIVERSITY COLLEGE LONDON HOSPITALS NHS FOUNDATION TRUST","RRV03","University College Hospital - RRV03",null,"RWF","UNIVERSITY HOSPITALS BRISTOL AND WESTON NHS FOUNDATION TRUST",null,"RWF","UNIVERSITY HOSPITALS BRISTOL AND WESTON NHS FOUNDATION TRUST","RJE09","Peterborough City Hospital - RGN80"]
[null,null,null,null,null,null,null,null,null,null,null,null,null,null,null,null,null,null,null,null,"QMM","RGP","JAMES PAGET UNIVERSITY HOSPITALS NHS FOUNDATION TRUST","RGP75","James Paget University Hospital - RGP75",null,"RWG","UNIVERSITY HOSPITALS COVENTRY AND WARWICKSHIRE NHS TRUST",null,"RWG","UNIVERSITY HOSPITALS COVENTRY AND WARWICKSHIRE NHS TRUST","RJEXXX","Pilgrim Hospital - RWDLA"]
[null,null,null,null,null,null,null,null,null,null,null,null,null,null,null,null,null,null,null,null,"QMM","RM1","NORFOLK AND NORWICH UNIVERSITY HOSPITALS NHS FOUNDATION TRUST","RM102","Norfolk and Norwich University Hospital - RM102",null,"RWH","UNIVERSITY HOSPITALS DORSET NHS FOUNDATION TRUST",null,"RWH","UNIVERSITY HOSPITALS DORSET NHS FOUNDATION TRUST","RJL30","Pinderfields General Hospital - RXF05"]
[null,null,null,null,null,null,null,null,null,null,null,null,null,null,null,null,null,null,null,null,"QMM","RCX","THE QUEEN ELIZABETH HOSPITAL, KING'S LYNN, NHS FOUNDATION TRUST","RCX70","The Queen Elizabeth Hospital - RCX70",null,"RWJ","UNIVERSITY HOSPITALS OF DERBY AND BURTON NHS FOUNDATION TRUST",null,"RWJ","UNIVERSITY HOSPITALS OF DERBY AND BURTON NHS FOUNDATION TRUST","RJL32","Pontefract General Infirmary - RXF03"]
[null,null,null,null,null,null,null,null,null,null,null,null,null,null,null,null,null,null,null,null,"QNC","RJE","UNIVERSITY HOSPITALS OF NORTH MIDLANDS NHS TRUST","RJE09","County Hospital - RJE09",null,"RWP","UNIVERSITY HOSPITALS OF LEICESTER NHS TRUST",null,"RWP","UNIVERSITY HOSPITALS OF LEICESTER NHS TRUST","RJN71","Poole Hospital - R0D01"]
[null,null,null,null,null,null,null,null,null,null,null,null,null,null,null,null,null,null,null,null,"QNC","RJE","UNIVERSITY HOSPITALS OF NORTH MIDLANDS NHS TRUST","RJE01","Royal Stoke University Hospital - RJE01",null,"RWW","UNIVERSITY HOSPITALS OF MORECAMBE BAY NHS FOUNDATION TRUST",null,"RWW","UNIVERSITY HOSPITALS OF MORECAMBE BAY NHS FOUNDATION TRUST","RJZ01","Princess Alexandra Hospital - RQWG0"]
[null,null,null,null,null,null,null,null,null,null,null,null,null,null,null,null,null,null,null,null,"QNC","RJE","UNIVERSITY HOSPITALS OF NORTH MIDLANDS NHS TRUST","RJEXXX","WiC_MIU - RJEXXX",null,"RWY","UNIVERSITY HOSPITALS OF NORTH MIDLANDS NHS TRUST",null,"RWY","UNIVERSITY HOSPITALS OF NORTH MIDLANDS NHS TRUST","RJZ30","Princess Royal Hospital - N6J7V"]
[null,null,null,null,null,null,null,null,null,null,null,null,null,null,null,null,null,null,null,null,"QNQ","RDU","FRIMLEY HEALTH NHS FOUNDATION TRUST","RDU50","Wexham Park Hospital - RDU50",null,"RX1","UNIVERSITY HOSPITALS PLYMOUTH NHS TRUST",null,"RX1","UNIVERSITY HOSPITALS PLYMOUTH NHS TRUST","RK5BC","Princess Royal University Hospital - RJZ30"]
[null,null,null,null,null,null,null,null,null,null,null,null,null,null,null,null,null,null,null,null,"QNX","RXC","EAST SUSSEX HEALTHCARE NHS TRUST","RXC01","Conquest Hospital - RXC01",null,"RXC","UNIVERSITY HOSPITALS SUSSEX NHS FOUNDATION TRUST",null,"RXC","UNIVERSITY HOSPITALS SUSSEX NHS FOUNDATION TRUST","RK5XXX","Queen Alexandra Hospital - RHU03"]
[null,null,null,null,null,null,null,null,null,null,null,null,null,null,null,null,null,null,null,null,"QNX","RXC","EAST SUSSEX HEALTHCARE NHS TRUST","RXC02","Eastbourne District General Hospital - RXC02",null,"RXF","WALSALL HEALTHCARE NHS TRUST",null,"RXF","WALSALL HEALTHCARE NHS TRUST","RK950","Queen Elizabeth Hospital - RJ231"]
[null,null,null,null,null,null,null,null,null,null,null,null,null,null,null,null,null,null,null,null,"QNX","RPC","QUEEN VICTORIA HOSPITAL NHS FOUNDATION TRUST","RPC04","Queen Victoria Hospital (East Grinstead) - RPC04",null,"RXK","WARRINGTON AND HALTON TEACHING HOSPITALS NHS FOUNDATION TRUST",null,"RXK","WARRINGTON AND HALTON TEACHING HOSPITALS NHS FOUNDATION TRUST","RK9XXX","Queen Elizabeth Hospital - RR7EN"]
[null,null,null,null,null,null,null,null,null,null,null,null,null,null,null,null,null,null,null,null,"QNX","RYR","UNIVERSITY HOSPITALS SUSSEX NHS FOUNDATION TRUST","N6J7V","Princess Royal Hospital - N6J7V",null,"RXL","WEST HERTFORDSHIRE TEACHING HOSPITALS NHS TRUST",null,"RXL","WEST HERTFORDSHIRE TEACHING HOSPITALS NHS TRUST","RKB01","Queen Elizabeth Hospital Birmingham - RRK15"]
[null,null,null,null,null,null,null,null,null,null,null,null,null,null,null,null,null,null,null,null,"QNX","RYR","UNIVERSITY HOSPITALS SUSSEX NHS FOUNDATION TRUST","E0A3H","Royal Sussex County Hospital - E0A3H",null,"RXN","WEST SUFFOLK NHS FOUNDATION TRUST",null,"RXN","WEST SUFFOLK NHS FOUNDATION TRUST","RKB03","Queen Elizabeth I I Hospital - RWH20"]
[null,null,null,null,null,null,null,null,null,null,null,null,null,null,null,null,null,null,null,null,"QNX","RYR","UNIVERSITY HOSPITALS SUSSEX NHS FOUNDATION TRUST","X5M8P","Sussex Eye Hospital - X5M8P",null,"RXP","WIRRAL UNIVERSITY TEACHING HOSPITAL NHS FOUNDATION TRUST",null,"RXP","WIRRAL UNIVERSITY TEACHING HOSPITAL NHS FOUNDATION TRUST","RKBXXX","Queen Elizabeth The Queen Mother Hospital - RVV09"]
[null,null,null,null,null,null,null,null,null,null,null,null,null,null,null,null,null,null,null,null,"QNX","RYR","UNIVERSITY HOSPITALS SUSSEX NHS FOUNDATION TRUST","G0W1C","The Royal Alexandra Children's Hospital - G0W1C",null,"RXQ","WORCESTERSHIRE ACUTE HOSPITALS NHS TRUST",null,"RXQ","WORCESTERSHIRE ACUTE HOSPITALS NHS TRUST","RL403","Queen Victoria Hospital (East Grinstead) - RPC04"]
[null,null,null,null,null,null,null,null,null,null,null,null,null,null,null,null,null,null,null,null,"QOC","RXW","THE SHREWSBURY AND TELFORD HOSPITAL NHS TRUST","RXWAS","Royal Shrewsbury Hospital - RXWAS",null,"RXR","WRIGHTINGTON, WIGAN AND LEIGH NHS FOUNDATION TRUST",null,"RXR","WRIGHTINGTON, WIGAN AND LEIGH NHS FOUNDATION TRUST","RLQ01","Queen's Hospital - RF4QH"]
[null,null,null,null,null,null,null,null,null,null,null,null,null,null,null,null,null,null,null,null,"QOC","RXW","THE SHREWSBURY AND TELFORD HOSPITAL NHS TRUST","RXWAT","The Princess Royal Hospital - RXWAT",null,"RXW","WYE VALLEY NHS TRUST",null,"RXW","WYE VALLEY NHS TRUST","RLT01","Queen's Hospital, Burton Upon Trent - RTG02"]
[null,null,null,null,null,null,null,null,null,null,null,null,null,null,null,null,null,null,null,null,"QOP","RMC","BOLTON NHS FOUNDATION TRUST","RMC01","Royal Bolton Hospital - RMC01",null,"RYJ","YEOVIL DISTRICT HOSPITAL NHS FOUNDATION TRUST",null,"RYJ","YEOVIL DISTRICT HOSPITAL NHS FOUNDATION TRUST","RM102","Ripon and District Community Hospital - RCD02"]
[null,null,null,null,null,null,null,null,null,null,null,null,null,null,null,null,null,null,null,null,"QOP","R0A","MANCHESTER UNIVERSITY NHS FOUNDATION TRUST","R0A04","Manchester Royal Eye Hospital - R0A04",null,"RYR","YORK AND SCARBOROUGH TEACHING HOSPITALS NHS FOUNDATION TRUST",null,"RYR","YORK AND SCARBOROUGH TEACHING HOSPITALS NHS FOUNDATION TRUST","RMC01","Rotherham District General Hospital - RFRPA"]
[null,null,null,null,null,null,null,null,null,null,null,null,null,null,null,null,null,null,null,null,"QOP","R0A","MANCHESTER UNIVERSITY NHS FOUNDATION TRUST","R0A02","Manchester Royal Infirmary - R0A02",null,null,null,null,null,null,"RMP01","Royal Albert Edward Infirmary - RRF02"]
[null,null,null,null,null,null,null,null,null,null,null,null,null,null,null,null,null,null,null,null,"QOP","R0A","MANCHESTER UNIVERSITY NHS FOUNDATION TRUST","R0A66","North Manchester General Hospital -R0A66",null,null,null,null,null,null,"RN325","Royal Berkshire Hospital - RHW01"]
[null,null,null,null,null,null,null,null,null,null,null,null,null,null,null,null,null,null,null,null,"QOP","R0A","MANCHESTER UNIVERSITY NHS FOUNDATION TRUST","R0A03","Royal Manchester Children's Hospital - R0A03",null,null,null,null,null,null,"RN3TC","Royal Blackburn Hospital - RXR20"]
[null,null,null,null,null,null,null,null,null,null,null,null,null,null,null,null,null,null,null,null,"QOP","R0A","MANCHESTER UNIVERSITY NHS FOUNDATION TRUST","R0A09","Trafford General Hospital - R0A09",null,null,null,null,null,null,"RN506","Royal Bolton Hospital - RMC01"]
[null,null,null,null,null,null,null,null,null,null,null,null,null,null,null,null,null,null,null,null,"QOP","R0A","MANCHESTER UNIVERSITY NHS FOUNDATION TRUST","R0A07","Wythenshawe Hospital - R0A07",null,null,null,null,null,null,"RN541","Royal Bourenmouth Hospital - R0D02"]
[null,null,null,null,null,null,null,null,null,null,null,null,null,null,null,null,null,null,null,null,"QOP","RWJ","STOCKPORT NHS FOUNDATION TRUST","RWJ09","Stepping Hill Hospital - RWJ09",null,null,null,null,null,null,"RN542","Royal Cornwall Hospital (Treliske) - REF12"]
[null,null,null,null,null,null,null,null,null,null,null,null,null,null,null,null,null,null,null,null,"QOP","RMP","TAMESIDE AND GLOSSOP INTEGRATED CARE NHS FOUNDATION TRUST","RMP01","Tameside General Hospital - RMP01",null,null,null,null,null,null,"RN707","Royal Derby Hospital - RTGFG"]
[null,null,null,null,null,null,null,null,null,null,null,null,null,null,null,null,null,null,null,null,"QOP","RRF","WRIGHTINGTON, WIGAN AND LEIGH NHS FOUNDATION TRUST","RRF02","Royal Albert Edward Infirmary - RRF02",null,null,null,null,null,null,"RNA01","Royal Devon and Exeter Hospital (Wonford) - RH801"]
[null,null,null,null,null,null,null,null,null,null,null,null,null,null,null,null,null,null,null,null,"QOQ","RCD","HARROGATE AND DISTRICT NHS FOUNDATION TRUST","RCD01","Harrogate District Hospital - RCD01",null,null,null,null,null,null,"RNN62","Royal Free Hospital - RAL01"]
[null,null,null,null,null,null,null,null,null,null,null,null,null,null,null,null,null,null,null,null,"QOQ","RCD","HARROGATE AND DISTRICT NHS FOUNDATION TRUST","RCD02","Ripon and District Community Hospital - RCD02",null,null,null,null,null,null,"RNNBX","Royal Hallamshire Hospital - RHQHH"]
[null,null,null,null,null,null,null,null,null,null,null,null,null,null,null,null,null,null,null,null,"QOQ","RCD","HARROGATE AND DISTRICT NHS FOUNDATION TRUST","RCDXXX","WiC_MIU - RCDXXX",null,null,null,null,null,null,"RNQ51","Royal Hampshire County Hospital - RN541"]
[null,null,null,null,null,null,null,null,null,null,null,null,null,null,null,null,null,null,null,null,"QOQ","RWA","HULL UNIVERSITY TEACHING HOSPITALS NHS TRUST","RWA01","Hull Royal Infirmary - RWA01",null,null,null,null,null,null,"RNS01","Royal Lancaster Infirmary - RTX02"]
[null,null,null,null,null,null,null,null,null,null,null,null,null,null,null,null,null,null,null,null,"QOQ","RJL","NORTHERN LINCOLNSHIRE AND GOOLE NHS FOUNDATION TRUST","RJL30","Diana, Princess Of Wales Hospital - RJL30",null,null,null,null,null,null,"RNZ02","Royal Liverpool University Hospital - REMRQ"]
[null,null,null,null,null,null,null,null,null,null,null,null,null,null,null,null,null,null,null,null,"QOQ","RJL","NORTHERN LINCOLNSHIRE AND GOOLE NHS FOUNDATION TRUST","RJL32","Scunthorpe General Hospital - RJL32",null,null,null,null,null,null,"RP5BA","Royal Manchester Children's Hospital - R0A03"]
[null,null,null,null,null,null,null,null,null,null,null,null,null,null,null,null,null,null,null,null,"QOQ","RCB","YORK AND SCARBOROUGH TEACHING HOSPITALS NHS FOUNDATION TRUST","RCBCA","Scarborough General Hospital - RCBCA",null,null,null,null,null,null,"RP5DR","Royal Preston Hospital - RXN02"]
[null,null,null,null,null,null,null,null,null,null,null,null,null,null,null,null,null,null,null,null,"QOQ","RCB","YORK AND SCARBOROUGH TEACHING HOSPITALS NHS FOUNDATION TRUST","RCB55","York Hospital - RCB55",null,null,null,null,null,null,"RP5MM","Royal Shrewsbury Hospital - RXWAS"]
[null,null,null,null,null,null,null,null,null,null,null,null,null,null,null,null,null,null,null,null,"QOX","RN3","GREAT WESTERN HOSPITALS NHS FOUNDATION TRUST","RN3TC","The Brunel NHS Treatment Centre - RN3TC",null,null,null,null,null,null,"RP601","Royal Stoke University Hospital - RJE01"]
[null,null,null,null,null,null,null,null,null,null,null,null,null,null,null,null,null,null,null,null,"QOX","RN3","GREAT WESTERN HOSPITALS NHS FOUNDATION TRUST","RN325","The Great Western Hospital - RN325",null,null,null,null,null,null,"RPA02","Royal Sussex County Hospital - E0A3H"]
[null,null,null,null,null,null,null,null,null,null,null,null,null,null,null,null,null,null,null,null,"QOX","RNZ","SALISBURY NHS FOUNDATION TRUST","RNZ02","Salisbury District Hospital - RNZ02",null,null,null,null,null,null,"RPC04","Russells Hall Hospital - RNA01"]
[null,null,null,null,null,null,null,null,null,null,null,null,null,null,null,null,null,null,null,null,"QPM","RNQ","KETTERING GENERAL HOSPITAL NHS FOUNDATION TRUST","RNQ51","Kettering General Hospital - RNQ51",null,null,null,null,null,null,"RQ301","Salisbury District Hospital - RNZ02"]
[null,null,null,null,null,null,null,null,null,null,null,null,null,null,null,null,null,null,null,null,"QPM","RNS","NORTHAMPTON GENERAL HOSPITAL NHS TRUST","RNS01","Northampton General Hospital (Acute) - RNS01",null,null,null,null,null,null,"RQM01","Samuel Johnson - RTG54"]
[null,null,null,null,null,null,null,null,null,null,null,null,null,null,null,null,null,null,null,null,"QR1","RTE","GLOUCESTERSHIRE HOSPITALS NHS FOUNDATION TRUST","RTE01","Cheltenham General Hospital - RTE01",null,null,null,null,null,null,"RQM91","Sandwell General Hospital - RXK01"]
[null,null,null,null,null,null,null,null,null,null,null,null,null,null,null,null,null,null,null,null,"QR1","RTE","GLOUCESTERSHIRE HOSPITALS NHS FOUNDATION TRUST","RTE03","Gloucestershire Royal Hospital - RTE03",null,null,null,null,null,null,"RQMXXX","Scarborough General Hospital - RCBCA"]
[null,null,null,null,null,null,null,null,null,null,null,null,null,null,null,null,null,null,null,null,"QRL","RN5","HAMPSHIRE HOSPITALS NHS FOUNDATION TRUST","RN542","Andover War Memorial Hospital - RN542",null,null,null,null,null,null,"RQWG0","Scunthorpe General Hospital - RJL32"]
[null,null,null,null,null,null,null,null,null,null,null,null,null,null,null,null,null,null,null,null,"QRL","RN5","HAMPSHIRE HOSPITALS NHS FOUNDATION TRUST","RN506","Basingstoke and North Hampshire Hospital - RN506",null,null,null,null,null,null,"RQXM1","Sheffield Children's Hospital - RCUEF"]
[null,null,null,null,null,null,null,null,null,null,null,null,null,null,null,null,null,null,null,null,"QRL","RN5","HAMPSHIRE HOSPITALS NHS FOUNDATION TRUST","RN541","Royal Hampshire County Hospital - RN541",null,null,null,null,null,null,"RR7EN","Sir Robert Peel - RTG50"]
[null,null,null,null,null,null,null,null,null,null,null,null,null,null,null,null,null,null,null,null,"QRL","R1F","ISLE OF WIGHT NHS TRUST","R1F01","St Mary's Hospital - R1F01",null,null,null,null,null,null,"RR7XXX","South Tyneside District Hospital - R0B0Q"]
[null,null,null,null,null,null,null,null,null,null,null,null,null,null,null,null,null,null,null,null,"QRL","RHU","PORTSMOUTH HOSPITALS UNIVERSITY NATIONAL HEALTH SERVICE TRUST","RHU03","Queen Alexandra Hospital - RHU03",null,null,null,null,null,null,"RR801","Southampton General Hospital - RHM01"]
[null,null,null,null,null,null,null,null,null,null,null,null,null,null,null,null,null,null,null,null,"QRL","RHU","PORTSMOUTH HOSPITALS UNIVERSITY NATIONAL HEALTH SERVICE TRUST","RHUXXX","WiC_MIU - RHUXXX",null,null,null,null,null,null,"RR813","Southend Hospital - RAJ01"]
[null,null,null,null,null,null,null,null,null,null,null,null,null,null,null,null,null,null,null,null,"QRL","RHM","UNIVERSITY HOSPITAL SOUTHAMPTON NHS FOUNDATION TRUST","RHM01","Southampton General Hospital - RHM01",null,null,null,null,null,null,"RRF02","Southmead Hospital - RVJ01"]
[null,null,null,null,null,null,null,null,null,null,null,null,null,null,null,null,null,null,null,null,"QRV","RQM","CHELSEA AND WESTMINSTER HOSPITAL NHS FOUNDATION TRUST","RQM01","Chelsea and Westminster Hospital - RQM01",null,null,null,null,null,null,"RRK15","Southport and Formby District General Hospital - RVY01"]
[null,null,null,null,null,null,null,null,null,null,null,null,null,null,null,null,null,null,null,null,"QRV","RQM","CHELSEA AND WESTMINSTER HOSPITAL NHS FOUNDATION TRUST","RQM91","West Middlesex University Hospital - RQM91",null,null,null,null,null,null,"RRK97","St Bartholomew's Hospital - R1HM0"]
[null,null,null,null,null,null,null,null,null,null,null,null,null,null,null,null,null,null,null,null,"QRV","RQM","CHELSEA AND WESTMINSTER HOSPITAL NHS FOUNDATION TRUST","RQMXXX","WiC_MIU - RQMXXX",null,null,null,null,null,null,"RRK98","St George's Hospital (Tooting) - RJ701"]
[null,null,null,null,null,null,null,null,null,null,null,null,null,null,null,null,null,null,null,null,"QRV","RYJ","IMPERIAL COLLEGE HEALTHCARE NHS TRUST","RYJ02","Charing Cross Hospital - RYJ02",null,null,null,null,null,null,"RRV03","St Helier Hospital - RVR05"]
[null,null,null,null,null,null,null,null,null,null,null,null,null,null,null,null,null,null,null,null,"QRV","RYJ","IMPERIAL COLLEGE HEALTHCARE NHS TRUST","RYJ01","St Mary's Hospital (HQ) - RYJ01",null,null,null,null,null,null,"RTD02","St James's University Hospital - RR813"]
[null,null,null,null,null,null,null,null,null,null,null,null,null,null,null,null,null,null,null,null,"QRV","RYJ","IMPERIAL COLLEGE HEALTHCARE NHS TRUST","RYJ07","Western Eye Hospital - RYJ07",null,null,null,null,null,null,"RTE01","St Mary's Hospital - R1F01"]
[null,null,null,null,null,null,null,null,null,null,null,null,null,null,null,null,null,null,null,null,"QRV","RYJ","IMPERIAL COLLEGE HEALTHCARE NHS TRUST","RYJXXX","WiC_MIU - RYJXXX",null,null,null,null,null,null,"RTE03","St Mary's Hospital (HQ) - RYJ01"]
[null,null,null,null,null,null,null,null,null,null,null,null,null,null,null,null,null,null,null,null,"QRV","R1K","LONDON NORTH WEST UNIVERSITY HEALTHCARE NHS TRUST","R1K04","Ealing Hospital - R1K04",null,null,null,null,null,null,"RTF86","St Peter's Hospital - RTK01"]
[null,null,null,null,null,null,null,null,null,null,null,null,null,null,null,null,null,null,null,null,"QRV","R1K","LONDON NORTH WEST UNIVERSITY HEALTHCARE NHS TRUST","R1K01","Northwick Park Hospital - R1K01",null,null,null,null,null,null,"RTFXXX","St Thomas' Hospital - RJ122"]
[null,null,null,null,null,null,null,null,null,null,null,null,null,null,null,null,null,null,null,null,"QRV","RAS","THE HILLINGDON HOSPITALS NHS FOUNDATION TRUST","RAS01","Hillingdon Hospital - RAS01",null,null,null,null,null,null,"RTG02","Stamford and Rutland Hospital - RGN49"]
[null,null,null,null,null,null,null,null,null,null,null,null,null,null,null,null,null,null,null,null,"QRV","RAS","THE HILLINGDON HOSPITALS NHS FOUNDATION TRUST","RAS02","Mount Vernon Hospital Site - RAS02",null,null,null,null,null,null,"RTG50","Stepping Hill Hospital - RWJ09"]
[null,null,null,null,null,null,null,null,null,null,null,null,null,null,null,null,null,null,null,null,"QSL","RH5","SOMERSET NHS FOUNDATION TRUST","RH5A8","Musgrove Park Hospital - RH5A8",null,null,null,null,null,null,"RTG54","Stoke Mandeville Hospital - RXQ02"]
[null,null,null,null,null,null,null,null,null,null,null,null,null,null,null,null,null,null,null,null,"QSL","RH5","SOMERSET NHS FOUNDATION TRUST","RH5XXX","Wic MIU - RH5XXX",null,null,null,null,null,null,"RTGFG","Sunderland Eye Infirmary – R0B0X"]
[null,null,null,null,null,null,null,null,null,null,null,null,null,null,null,null,null,null,null,null,"QSL","RA4","YEOVIL DISTRICT HOSPITAL NHS FOUNDATION TRUST","RA430","Yeovil District Hospital - RA430",null,null,null,null,null,null,"RTH05","Sunderland Royal Hospital – R0B01"]
[null,null,null,null,null,null,null,null,null,null,null,null,null,null,null,null,null,null,null,null,"QT1","RX1","NOTTINGHAM UNIVERSITY HOSPITALS NHS TRUST","RX1RA","Nottingham University Hospitals NHS Trust - Queen's Medical Centre Campus - RX1RA",null,null,null,null,null,null,"RTH08","Sussex Eye Hospital - X5M8P"]
[null,null,null,null,null,null,null,null,null,null,null,null,null,null,null,null,null,null,null,null,"QT1","RK5","SHERWOOD FOREST HOSPITALS NHS FOUNDATION TRUST","RK5BC","King's Mill Hospital - RK5BC",null,null,null,null,null,null,"RTK01","Tameside General Hospital - RMP01"]
[null,null,null,null,null,null,null,null,null,null,null,null,null,null,null,null,null,null,null,null,"QT1","RK5","SHERWOOD FOREST HOSPITALS NHS FOUNDATION TRUST","RK5XXX","WiC_MIU - RK5XXX",null,null,null,null,null,null,"RTP04","The Brunel NHS Treatment Centre - RN3TC"]
[null,null,null,null,null,null,null,null,null,null,null,null,null,null,null,null,null,null,null,null,"QT6","REF","ROYAL CORNWALL HOSPITALS NHS TRUST","REF12","Royal Cornwall Hospital (Treliske) - REF12",null,null,null,null,null,null,"RTR45","The Fryatt Hospital and Mayflower Medical Centre - RDEEE"]
[null,null,null,null,null,null,null,null,null,null,null,null,null,null,null,null,null,null,null,null,"QT6","REF","ROYAL CORNWALL HOSPITALS NHS TRUST","REF01","West Cornwall Hospital (Penzance) - REF01",null,null,null,null,null,null,"RTRAT","The Great Western Hospital - RN325"]
[null,null,null,null,null,null,null,null,null,null,null,null,null,null,null,null,null,null,null,null,"QU9","RXQ","BUCKINGHAMSHIRE HEALTHCARE NHS TRUST","RXQ02","Stoke Mandeville Hospital - RXQ02",null,null,null,null,null,null,"RTRXXX","The James Cook University Hospital - RTRAT"]
[null,null,null,null,null,null,null,null,null,null,null,null,null,null,null,null,null,null,null,null,"QU9","RTH","OXFORD UNIVERSITY HOSPITALS NHS FOUNDATION TRUST","RTH05","Horton General Hospital - RTH05",null,null,null,null,null,null,"RTX02","The Northumbria - RTF86"]
[null,null,null,null,null,null,null,null,null,null,null,null,null,null,null,null,null,null,null,null,"QU9","RTH","OXFORD UNIVERSITY HOSPITALS NHS FOUNDATION TRUST","RTH08","John Radcliffe Hospital - RTH08",null,null,null,null,null,null,"RTXBU","The Princess Royal Hospital - RXWAT"]
[null,null,null,null,null,null,null,null,null,null,null,null,null,null,null,null,null,null,null,null,"QU9","RHW","ROYAL BERKSHIRE NHS FOUNDATION TRUST","RHW03","King Edward Vii Hospital - RHW03",null,null,null,null,null,null,"RTXBW","The Queen Elizabeth Hospital - RCX70"]
[null,null,null,null,null,null,null,null,null,null,null,null,null,null,null,null,null,null,null,null,"QU9","RHW","ROYAL BERKSHIRE NHS FOUNDATION TRUST","RHW01","Royal Berkshire Hospital - RHW01",null,null,null,null,null,null,"RVJ01","The Royal Alexandra Children's Hospital - G0W1C"]
[null,null,null,null,null,null,null,null,null,null,null,null,null,null,null,null,null,null,null,null,"QUA","RNA","THE DUDLEY GROUP NHS FOUNDATION TRUST","RNA01","Russells Hall Hospital - RNA01",null,null,null,null,null,null,"RVR05","The Royal London Hospital - R1H12"]
[null,null,null,null,null,null,null,null,null,null,null,null,null,null,null,null,null,null,null,null,"QUA","RL4","THE ROYAL WOLVERHAMPTON NHS TRUST","RL403","New Cross Hospital - RL403",null,null,null,null,null,null,"RVR50","The Royal Victoria Infirmary - RTD02"]
[null,null,null,null,null,null,null,null,null,null,null,null,null,null,null,null,null,null,null,null,"QUA","RBK","WALSALL HEALTHCARE NHS TRUST","RBK02","Manor Hospital - RBK02",null,null,null,null,null,null,"RVV01","The Tunbridge Wells Hospital - RWFTW"]
[null,null,null,null,null,null,null,null,null,null,null,null,null,null,null,null,null,null,null,null,"QUE","RGT","CAMBRIDGE UNIVERSITY HOSPITALS NHS FOUNDATION TRUST","RGT01","Addenbrooke's Hospital - RGT01",null,null,null,null,null,null,"RVV02","Torbay Hospital - RA901"]
[null,null,null,null,null,null,null,null,null,null,null,null,null,null,null,null,null,null,null,null,"QUE","RGN","NORTH WEST ANGLIA NHS FOUNDATION TRUST","RGN90","Hinchingbrooke Hospital - RGN90",null,null,null,null,null,null,"RVV09","Trafford General Hospital - R0A09"]
[null,null,null,null,null,null,null,null,null,null,null,null,null,null,null,null,null,null,null,null,"QUE","RGN","NORTH WEST ANGLIA NHS FOUNDATION TRUST","RGN80","Peterborough City Hospital - RGN80",null,null,null,null,null,null,"RVVKC","University College Hospital - RRV03"]
[null,null,null,null,null,null,null,null,null,null,null,null,null,null,null,null,null,null,null,null,"QUE","RGN","NORTH WEST ANGLIA NHS FOUNDATION TRUST","RGN49","Stamford and Rutland Hospital - RGN49",null,null,null,null,null,null,"RVWAE","University Hospital (Coventry) - RKB01"]
[null,null,null,null,null,null,null,null,null,null,null,null,null,null,null,null,null,null,null,null,"QUY","RVJ","NORTH BRISTOL NHS TRUST","RVJ01","Southmead Hospital - RVJ01",null,null,null,null,null,null,"RVY01","University Hospital Aintree - REM21"]
[null,null,null,null,null,null,null,null,null,null,null,null,null,null,null,null,null,null,null,null,"QUY","RA7","UNIVERSITY HOSPITALS BRISTOL AND WESTON NHS FOUNDATION TRUST","RA708","Bristol Eye Hospital - RA708",null,null,null,null,null,null,"RVY02","University Hospital Lewisham - RJ224"]
[null,null,null,null,null,null,null,null,null,null,null,null,null,null,null,null,null,null,null,null,"QUY","RA7","UNIVERSITY HOSPITALS BRISTOL AND WESTON NHS FOUNDATION TRUST","RA723","Bristol Royal Hospital For Children - RA723",null,null,null,null,null,null,"RWA01","University Hospital Of North Durham - RXPCP"]
[null,null,null,null,null,null,null,null,null,null,null,null,null,null,null,null,null,null,null,null,"QUY","RA7","UNIVERSITY HOSPITALS BRISTOL AND WESTON NHS FOUNDATION TRUST","RA701","Bristol Royal Infirmary - RA701",null,null,null,null,null,null,"RWDDA","University Hospital Of North Tees - RVWAE"]
[null,null,null,null,null,null,null,null,null,null,null,null,null,null,null,null,null,null,null,null,"QUY","RA7","UNIVERSITY HOSPITALS BRISTOL AND WESTON NHS FOUNDATION TRUST","RA7C2","Weston General Hospital - RA7C2",null,null,null,null,null,null,"RWDLA","UTC-Colechester - RDE81"]
[null,null,null,null,null,null,null,null,null,null,null,null,null,null,null,null,null,null,null,null,"QVV","RBD","DORSET COUNTY HOSPITAL NHS FOUNDATION TRUST","RBD01","Dorset County Hospital - RBD01",null,null,null,null,null,null,"RWDLP","Warrington Hospital - RWWWH"]
[null,null,null,null,null,null,null,null,null,null,null,null,null,null,null,null,null,null,null,null,"QVV","R0D","UNIVERSITY HOSPITALS DORSET NHS FOUNDATION TRUST","R0D01","Poole Hospital - R0D01",null,null,null,null,null,null,"RWEAA","Warwick Hospital - RJC02"]
[null,null,null,null,null,null,null,null,null,null,null,null,null,null,null,null,null,null,null,null,"QVV","R0D","UNIVERSITY HOSPITALS DORSET NHS FOUNDATION TRUST","R0D02","Royal Bourenmouth Hospital - R0D02",null,null,null,null,null,null,"RWF03","Watford General Hospital - RWG02"]
[null,null,null,null,null,null,null,null,null,null,null,null,null,null,null,null,null,null,null,null,"QWE","RJ6","CROYDON HEALTH SERVICES NHS TRUST","RJ611","Croydon University Hospital - RJ611",null,null,null,null,null,null,"RWFTW","West Cornwall Hospital (Penzance) - REF01"]
[null,null,null,null,null,null,null,null,null,null,null,null,null,null,null,null,null,null,null,null,"QWE","RJ6","CROYDON HEALTH SERVICES NHS TRUST","RJ6XXX","WiC_MIU - RJ6XXX",null,null,null,null,null,null,"RWFXXX","West Cumberland Hospital - RNNBX"]
[null,null,null,null,null,null,null,null,null,null,null,null,null,null,null,null,null,null,null,null,"QWE","RVR","EPSOM AND ST HELIER UNIVERSITY HOSPITALS NHS TRUST","RVR50","Epsom Hospital - RVR50",null,null,null,null,null,null,"RWG02","West Middlesex University Hospital - RQM91"]
[null,null,null,null,null,null,null,null,null,null,null,null,null,null,null,null,null,null,null,null,"QWE","RVR","EPSOM AND ST HELIER UNIVERSITY HOSPITALS NHS TRUST","RVR05","St Helier Hospital - RVR05",null,null,null,null,null,null,"RWG08","West Suffolk Hospital - RGR50"]
[null,null,null,null,null,null,null,null,null,null,null,null,null,null,null,null,null,null,null,null,"QWE","RAX","KINGSTON HOSPITAL NHS FOUNDATION TRUST","RAX01","Kingston Hospital - RAX01",null,null,null,null,null,null,"RWH01","Western Eye Hospital - RYJ07"]
[null,null,null,null,null,null,null,null,null,null,null,null,null,null,null,null,null,null,null,null,"QWE","RAX","KINGSTON HOSPITAL NHS FOUNDATION TRUST","RAXXXX","WiC_MIU - RAXXXX",null,null,null,null,null,null,"RWH20","Westmorland General Hospital - RTXBW"]
[null,null,null,null,null,null,null,null,null,null,null,null,null,null,null,null,null,null,null,null,"QWE","RJ7","ST GEORGE'S UNIVERSITY HOSPITALS NHS FOUNDATION TRUST","RJ701","St George's Hospital (Tooting) - RJ701",null,null,null,null,null,null,"RWJ09","Weston General Hospital - RA7C2"]
[null,null,null,null,null,null,null,null,null,null,null,null,null,null,null,null,null,null,null,null,"QWO","RCF","AIREDALE NHS FOUNDATION TRUST","RCF22","Airedale General Hospital - RCF22",null,null,null,null,null,null,"RWP01","Wexham Park Hospital - RDU50"]
[null,null,null,null,null,null,null,null,null,null,null,null,null,null,null,null,null,null,null,null,"QWO","RAE","BRADFORD TEACHING HOSPITALS NHS FOUNDATION TRUST","RAE01","Bradford Royal Infirmary - RAE01",null,null,null,null,null,null,"RWP31","Whipps Cross University Hospital - R1HKH"]
[null,null,null,null,null,null,null,null,null,null,null,null,null,null,null,null,null,null,null,null,"QWO","RWY","CALDERDALE AND HUDDERSFIELD NHS FOUNDATION TRUST","RWY02","Calderdale Royal Hospital - RWY02",null,null,null,null,null,null,"RWP50","Whiston Hospital - RBN01"]
[null,null,null,null,null,null,null,null,null,null,null,null,null,null,null,null,null,null,null,null,"QWO","RWY","CALDERDALE AND HUDDERSFIELD NHS FOUNDATION TRUST","RWY01","Huddersfield Royal Infirmary - RWY01",null,null,null,null,null,null,"RWWHG","Wic MIU - RH5XXX"]
[null,null,null,null,null,null,null,null,null,null,null,null,null,null,null,null,null,null,null,null,"QWO","RR8","LEEDS TEACHING HOSPITALS NHS TRUST","RR801","Leeds General Infirmary - RR801",null,null,null,null,null,null,"RWWWH","WiC_MIU - R1HXXX"]
[null,null,null,null,null,null,null,null,null,null,null,null,null,null,null,null,null,null,null,null,"QWO","RR8","LEEDS TEACHING HOSPITALS NHS TRUST","RR813","St James's University Hospital - RR813",null,null,null,null,null,null,"RWY01","WiC_MIU - RAXXXX"]
[null,null,null,null,null,null,null,null,null,null,null,null,null,null,null,null,null,null,null,null,"QWO","RXF","MID YORKSHIRE HOSPITALS NHS TRUST","RXF10","Dewsbury and District Hospital - RXF10",null,null,null,null,null,null,"RWY02","WiC_MIU - RBTXXX"]
[null,null,null,null,null,null,null,null,null,null,null,null,null,null,null,null,null,null,null,null,"QWO","RXF","MID YORKSHIRE HOSPITALS NHS TRUST","RXF05","Pinderfields General Hospital - RXF05",null,null,null,null,null,null,"RX1RA","WiC_MIU - RCDXXX"]
[null,null,null,null,null,null,null,null,null,null,null,null,null,null,null,null,null,null,null,null,"QWO","RXF","MID YORKSHIRE HOSPITALS NHS TRUST","RXF03","Pontefract General Infirmary - RXF03",null,null,null,null,null,null,"RXC01","WiC_MIU - RH8XXX"]
[null,null,null,null,null,null,null,null,null,null,null,null,null,null,null,null,null,null,null,null,"QWU","RLT","GEORGE ELIOT HOSPITAL NHS TRUST","RLT01","George Eliot Hospital - Acute Services - RLT01",null,null,null,null,null,null,"RXC02","WiC_MIU - RHQXXX"]
[null,null,null,null,null,null,null,null,null,null,null,null,null,null,null,null,null,null,null,null,"QWU","RJC","SOUTH WARWICKSHIRE NHS FOUNDATION TRUST","RJC02","Warwick Hospital - RJC02",null,null,null,null,null,null,"RXF03","WiC_MIU - RHUXXX"]
[null,null,null,null,null,null,null,null,null,null,null,null,null,null,null,null,null,null,null,null,"QWU","RJC","SOUTH WARWICKSHIRE NHS FOUNDATION TRUST","RJCXXX","WiC_MIU - RJCXXX",null,null,null,null,null,null,"RXF05","WiC_MIU - RJ1XXX"]
[null,null,null,null,null,null,null,null,null,null,null,null,null,null,null,null,null,null,null,null,"QWU","RKB","UNIVERSITY HOSPITALS COVENTRY AND WARWICKSHIRE NHS TRUST","RKB03","Hospital Of St Cross - RKB03",null,null,null,null,null,null,"RXF10","WiC_MIU - RJ6XXX"]
[null,null,null,null,null,null,null,null,null,null,null,null,null,null,null,null,null,null,null,null,"QWU","RKB","UNIVERSITY HOSPITALS COVENTRY AND WARWICKSHIRE NHS TRUST","RKB01","University Hospital (Coventry) - RKB01",null,null,null,null,null,null,"RXK01","WiC_MIU - RJCXXX"]
[null,null,null,null,null,null,null,null,null,null,null,null,null,null,null,null,null,null,null,null,"QWU","RKB","UNIVERSITY HOSPITALS COVENTRY AND WARWICKSHIRE NHS TRUST","RKBXXX","WiC_MIU - RKBXXX",null,null,null,null,null,null,"RXK02","WiC_MIU - RJEXXX"]
[null,null,null,null,null,null,null,null,null,null,null,null,null,null,null,null,null,null,null,null,"QXU","RTK","ASHFORD AND ST PETER'S HOSPITALS NHS FOUNDATION TRUST","RTK01","St Peter's Hospital - RTK01",null,null,null,null,null,null,"RXK03","WiC_MIU - RK5XXX"]
[null,null,null,null,null,null,null,null,null,null,null,null,null,null,null,null,null,null,null,null,"QXU","RTP","SURREY AND SUSSEX HEALTHCARE NHS TRUST","RTP04","East Surrey Hospital - RTP04",null,null,null,null,null,null,"RXL01","WiC_MIU - RK9XXX"]
[null,null,null,null,null,null,null,null,null,null,null,null,null,null,null,null,null,null,null,null,"QYG","RBS","ALDER HEY CHILDREN'S NHS FOUNDATION TRUST","RBS25","Alder Hey Children's NHS - RBS25",null,null,null,null,null,null,"RXN01","WiC_MIU - RKBXXX"]
[null,null,null,null,null,null,null,null,null,null,null,null,null,null,null,null,null,null,null,null,"QYG","RJN","EAST CHESHIRE NHS TRUST","RJN71","Macclesfield District General Hospital - RJN71",null,null,null,null,null,null,"RXN02","WiC_MIU - RQMXXX"]
[null,null,null,null,null,null,null,null,null,null,null,null,null,null,null,null,null,null,null,null,"QYG","REM","LIVERPOOL UNIVERSITY HOSPITALS NHS FOUNDATION TRUST","REMRQ","Royal Liverpool University Hospital - REMRQ",null,null,null,null,null,null,"RXPCP","WiC_MIU - RR7XXX"]
[null,null,null,null,null,null,null,null,null,null,null,null,null,null,null,null,null,null,null,null,"QYG","REM","LIVERPOOL UNIVERSITY HOSPITALS NHS FOUNDATION TRUST","REM21","University Hospital Aintree - REM21",null,null,null,null,null,null,"RXPXXX","WiC_MIU - RTFXXX"]
[null,null,null,null,null,null,null,null,null,null,null,null,null,null,null,null,null,null,null,null,"QYG","REP","LIVERPOOL WOMEN'S NHS FOUNDATION TRUST","REP01","Liverpool Womens Hospital - REP01",null,null,null,null,null,null,"RXQ02","WiC_MIU - RTRXXX"]
[null,null,null,null,null,null,null,null,null,null,null,null,null,null,null,null,null,null,null,null,"QYG","RBT","MID CHESHIRE HOSPITALS NHS FOUNDATION TRUST","RBT20","Leighton Hospital - RBT20",null,null,null,null,null,null,"RXR20","WiC_MIU - RWFXXX"]
[null,null,null,null,null,null,null,null,null,null,null,null,null,null,null,null,null,null,null,null,"QYG","RBT","MID CHESHIRE HOSPITALS NHS FOUNDATION TRUST","RBTXXX","WiC_MIU - RBTXXX",null,null,null,null,null,null,"RXWAS","WiC_MIU - RXPXXX"]
[null,null,null,null,null,null,null,null,null,null,null,null,null,null,null,null,null,null,null,null,"QYG","RVY","SOUTHPORT AND ORMSKIRK HOSPITAL NHS TRUST","RVY02","Ormskirk and District General Hospital - RVY02",null,null,null,null,null,null,"RXWAT","WiC_MIU - RYJXXX"]
[null,null,null,null,null,null,null,null,null,null,null,null,null,null,null,null,null,null,null,null,"QYG","RVY","SOUTHPORT AND ORMSKIRK HOSPITAL NHS TRUST","RVY01","Southport and Formby District General Hospital - RVY01",null,null,null,null,null,null,"RYJ01","William Harvey Hospital (Ashford) - RVV01"]
[null,null,null,null,null,null,null,null,null,null,null,null,null,null,null,null,null,null,null,null,"QYG","RBN","ST HELENS AND KNOWSLEY TEACHING HOSPITALS NHS TRUST","RBN01","Whiston Hospital - RBN01",null,null,null,null,null,null,"RYJ02","Worcestershire Royal Hospital - RWP50"]
[null,null,null,null,null,null,null,null,null,null,null,null,null,null,null,null,null,null,null,null,"QYG","RWW","WARRINGTON AND HALTON TEACHING HOSPITALS NHS FOUNDATION TRUST","RWWHG","Halton Hospital - RWWHG",null,null,null,null,null,null,"RYJ07","Wythenshawe Hospital - R0A07"]
[null,null,null,null,null,null,null,null,null,null,null,null,null,null,null,null,null,null,null,null,"QYG","RWW","WARRINGTON AND HALTON TEACHING HOSPITALS NHS FOUNDATION TRUST","RWWWH","Warrington Hospital - RWWWH",null,null,null,null,null,null,"RYJXXX","Yeovil District Hospital - RA430"]
[null,null,null,null,null,null,null,null,null,null,null,null,null,null,null,null,null,null,null,null,"QYG","RBL","WIRRAL UNIVERSITY TEACHING HOSPITAL NHS FOUNDATION TRUST","RBL14","Arrowe Park Hospital - RBL14",null,null,null,null,null,null,"X5M8P","York Hospital - RCB55"]